Workbook

Sheet Cover Page
N2: Version 22.3 30/11/22
B8: Add photo
N13: Notes:
N14: This template may require adjustments by individual operators to meet specific reporting requirements as defined in the site Permit(s)
B29: Annual Performance Report 2023
B31: Permit EPR/YP3033BE
B33: LondonEnergy Ltd
B35: EcoPark
B37: LondonEnergy Ltd
B39: Year: | C39: 2023
B41: Address: | C41: Advent way
B43: Tel: | C43: 020 7000 9595
B45: Email: | C45: HSQE@londonenergyltd.com
B47: Prepared by: | C47: Amani Jemal | F47: Position: | G47: Environmental Advisor
C48: Ben Hillyear | G48: Operations Manager
B50: Approved by: | C50: Elis Jenkins | F50: Position: | G50: Senior Environment Leader
B52: Version: | C52: 1
B54: Issue Date: | C54: 2024-01-27

Sheet Contents
A1: Annual Performance Report 2023 | E1: Name of Facility as per Permit
A3: Contents | K3: Notes:
A4: Section | B4: Subject | H4: Page | K4: Section references and Page nos. to be inserted
B5: Facility Information | K5: Sections and Subjects may require adjustment by individual operators to meet specific reporting requirements as defined in the sites Permit(s)
B6: Operational Data
B7: Operational Summary
B8: Performance Form 1
B9: Energy Form 1
B10: Permit Compliance
B11: Improvements
B12: Public Liasion
B13: Carbon dioxide and nitrous oxide emissions
B14: Residue Quality
B15: Emissions to Water
B16: Emissions to Air (periodically monitored)
B17: Emissions to Air (continuously monitored)
B18: Hydrogen Chloride emissions
B19: Sulphur Dioxdie emsissions
B20: Oxides of Notrigen emissions
B21: Total Organic Carbon emissions
B22: Particulate Matter emissions
B23: Carbon Monoxide emissions
B24: Ammonia emissions
A27: Version Control
A28: Section | B28: Information | H28: Date
A35: Distribution
A36: Copy | B36: Name, Role | H36: No.
A45: This report is required under the Industrial Emissions Directive’s Article 55(2) requirements on reporting and public information on waste incineration plants and co-incineration plants, which require the operator to produce an annual report on the functioning and monitoring of the plant and make it available to the public.

Sheet Facility Info
A1: Annual Performance Report 2023 | E1: LondonEnergy Ltd
A3: Plant Description and Design | K3: Notes:
A5: The EcoPark Energy Centre consists of 5 boilers, 5 turbines and 4 flue gas treatment streams. The boilers are a rolling grate technology and the plant is equipped with Air Pollution Control (APC) measures that ensure that the plant conforms to the requirements set out in the Waste Incineration Directive 2000/76/EC (WID) in all respects. In practice, the pollutant abatement technologies applied will limit the emission concentrations to levels below the limit values. The heat from the process is utilised to generate potentially 40 MW of electricity, of which in excess of up to 80% is exported to the local electricity distribution network, thus saving valuable fossil fuel resources. | K5: Include summary of plant design, design capacity, no. of combustion lines, electrical and heat capacity and any other general information that descibes the facility, its location and purpose
A20: Summary of Operational Processes and Procedures
A22: The burning process significantly reduces the volume of waste. Ferrous and non-ferrous metals are recycled as is Incinerator Bottom Ash (IBA). The IBA is recycled utilising established methodology for use as a secondary aggregate e.g. for asphalt. The effect of reducing the volume by recovery of this material means that landfill void space is conserved. Equally as important, the use of secondary aggregates reduces the demand upon the quarrying of primary aggregates. The EcoPark Energy Centre plant operates on a continuous 24-hour basis throughout the year, apart from partial planned and unplanned shutdowns. Incidents that cause unplanned shutdowns are dealt with in accordance with the appropriate planned actions. To offer maximum flexibility to the Local Authorities waste collection services, and to minimise local impact, particularly during peak traffic times, the facility is permitted to accept waste on a 24-hour basis. | K22: Include summary of key processes and procedures such as (but not limited to); waste reception, control rooms, grate, bed and bolier, energy & heat generation, cooling systems, residue management, emission controls, health and safety systems, maintenance

Sheet Improvements
A1: Annual Performance Report 2023 | E1: LondonEnergy Ltd
A3: Summary of Plant Improvements
A5: Summary of any efficiency improvements that have been completed within the year.
A6: Replacement of Ash Extraction System Replacement of ALL bag filters across ALL FGT's Re-wind of TA4 Alternator Commencement of DeNox Upgrade
A16: Summary of any permit improvement conditions that have been completed within the year and the resulting environmental benefits.
A27: Summary of any changes to the plant or operating techniques which required a variation to the permit and a summary of the resulting environmental impact.
A28: Variation to align with WI BREF implementation on the 3rd December.
A38: Summary of any other improvements made to the plant or planned to be made and a summary of the resulting environmental benefits.
A39: Boiler Outage - Complete Fan Motor Overhaul FGT Hopper replacement Boiler Bank replacement Superheater replacement Superheater inconel upgrade Boiler 5 Superheater bottom bend replacement Completion of DeNox upgrade

Sheet Operational Data
A1: Annual Performance Report 2023 | E1: LondonEnergy Ltd
A3: Operational Data
A4: Plant Size | B4: Max 750,000 | D4: tonnes pa | F4: MWth | G4: 5400000 | H4: MWe | J4: Notes:
A5: No. of combustion lines | B5: 5 | D5: No. of Turbines: | F5: 5 | J5: * - RDF to include SRF
J6: ** - Combusted tonnage = tonnes delivered in period + (tonnes in bunker at start of period – tonnes in bunker at end of period), or equivalent calculation depending on plant type
A7: Waste types received | B7: Unit | C7: Q1 | D7: Q2 | E7: Q3 | F7: Q4 | G7: Year Total | H7: %
A8: Household / Local Authority | B8: tonnes | C8: 53604 | D8: 61387 | E8: 60221 | F8: 59858 | G8: =SUM(C8:F8) -> 235070 | H8: =G8/G18 -> 0.4857647759
A9: Commercial & Industrial | C9: 0 | D9: 0 | E9: 0 | F9: 0 | G9: 0 | H9: - | J9: *** - CHP plants only
A10: Hazardous | C10: 0 | D10: 0 | E10: 0 | F10: 0 | G10: 0 | H10: - | J10: **** Availability Definition: 'the availability of a line is to be calculated by the number of hours the line reported Continuously Monitored emission levels to the Regulator through the calendar year divided by the total number of hours in that year. The overall plant availability is calculated as the Mean of all lines in the plant. For clarity this includes periods of abnormal operation.' Rationale: The primary function of an Energy from Waste facility is the disposal of waste. It follows therefore that the availability of a plant is determined by the period of time a facility spends undertaking this activity.
A11: Clinical | C11: 91 | D11: 68 | E11: 71 | F11: 72 | G11: =SUM(C11:F11) -> 302 | H11: =G11/G18 -> 0.0006240735199
A12: Waste wood (biomass) | C12: 0 | D12: 0 | E12: 0 | F12: 0 | G12: 0 | H12: -
A13: Refuse Derived Fuel * - H'hold/LA | C13: 0 | D13: 0 | E13: 0 | F13: 0 | G13: 0 | H13: -
A14: Refuse Derived Fuel * - C&I | C14: 0 | D14: 0 | E14: 0 | F14: 0 | G14: 0 | H14: -
A15: Other [Third Party] | C15: 11971.78174 | D15: 7314.867 | E15: 2911.88598 | F15: 10477.50898 | G15: =SUM(C15:F15) -> 32676.0437 | H15: =G15/G18 -> 0.06752401857
A16: Other [Hertfordshire CC - 2017 contract] | C16: 6623.16 | D16: 1252.3 | E16: 1393.38 | F16: 3406.98 | G16: =SUM(C16:F16) -> 12675.82 | H16: =G16/G18 -> 0.02619418412
A17: Other [Secondary transfer, HS & Wembley] | C17: 61574.78 | D17: 50286.2 | E17: 45035.7 | F17: 46296.8 | G17: 203193.48 | H17: =G17/G18 -> 0.4198929479
A18: Total waste received | C18: =SUM(C8:C17) -> 133864.7217 | D18: =SUM(D8:D17) -> 120308.367 | E18: 109632.966 | F18: 120111.289 | G18: =SUM(G8:G17) -> 483917.3437 | H18: =G18/G18 -> 1
A19: Rejected Waste | G19: 0 | H19: -
A20: Unprocessed waste transferred out | G20: 0 | H20: -
A21: Total waste combusted ** | G21: 0
J22: Password for protected cells A password has been set to prevent accidental editing of cells with formulae. If you still need to make an edit for some reason then the password = 1234
A23: Energy Usage / Export | B23: Unit | C23: Q1 | D23: Q2 | E23: Q3 | F23: Q4 | G23: Year Total | H23: KWh/te
A24: Power Generated | B24: MWh | C24: 67078 | D24: 61859 | E24: 53893 | F24: 58485 | G24: =SUM(C24:F24) -> 241315 | H24: =G24/G18 -> 0.4986698723
A25: Power Exported | C25: 55341 | D25: 51985 | E25: 51985 | F25: 43340 | G25: =SUM(C25:F25) -> 202651 | H25: =G25/G18 -> 0.41877193
A26: Power Used on site | C26: =C24-C25 -> 11737 | D26: =D24-D25 -> 9874 | E26: 1908 | F26: 15145 | G26: 38664 | H26: =G26/G18 -> 0.07989794229
A27: Power Imported | C27: 0 | D27: 0 | E27: 55 | F27: 75 | G27: 130 | H27: =G27/G18 -> 0.0002686409191
A28: Parasitic Load | B28: % | C28: =(C26/C24) -> 0.1749754018 | D28: =(D26/D24) -> 0.1596210737 | E28: 0.03540348468 | F28: 0.2589552877 | G28: 0.1602221163 | H28: -
A29: Thermal Energy Produced *** | B29: MWh | G29: 0 | H29: -
A30: Thermal Energy Exported *** | G30: 0 | H30: -
A31: R1 value (if applicable) | B31: R1
A33: Waste Disposal & Recovery | B33: Unit | C33: Q1 | D33: Q2 | E33: Q3 | F33: Q4 | G33: Year Total | H33: % inputs
A34: APC Residues - produced | B34: tonnes | C34: 3819 | D34: 3207 | E34: 2825 | F34: 1358.66 | G34: =SUM(C34:F34) -> 11209.66 | H34: =G34/G18 -> 0.02316441051
A35: IBA - produced | C35: 22983.96 | D35: 23724.76 | E35: 18851.42 | F35: 20828.75 | G35: =SUM(C35:F35) -> 86388.89 | H35: =G35/G18 -> 0.1785199293
A36: Metals recycling | C36: 2760.94 | D36: 25768.34 | E36: 2167.5 | F36: 2394.2 | G36: =SUM(C36:F36) -> 33090.98 | H36: =G36/G18 -> 0.0683814714
A37: ETP Sludge | C37: 55.26 | D37: 306.16 | E37: 776.88 | F37: 276.24 | G37: =SUM(C37:F37) -> 1414.54 | H37: =G37/G18 -> 0.002923102506
A38: Other | C38: 0 | D38: 0 | E38: 0 | F38: 0 | G38: 0 | H38: -
A39: Other | C39: 0 | D39: 0 | E39: 0 | F39: 0 | G39: 0 | H39: -
A41: Raw Material Usage | B41: Unit | C41: Q1 | D41: Q2 | E41: Q3 | F41: Q4 | G41: Year Total | H41: kg or Ltr /te
A42: Mains Water | B42: ltrs | C42: 38405000 | D42: 43183000 | E42: 44568000 | F42: 44300000 | G42: 170456000 | H42: =G42/G18 -> 352.2419732
A43: Other Water | B43: ltrs | C43: 185945000 | D43: 222033000 | E43: 193900000 | F43: 160549000 | G43: 762427000 | H43: =G43/G18 -> 1575.531462
A44: Ammonia | B44: kgs | C44: 0 | D44: 0 | E44: 0 | F44: 0 | G44: 0 | H44: -
A45: Urea | B45: kgs | C45: 121840 | D45: 156580 | E45: 220780 | F45: 82140 | G45: 581340 | H45: 0.12
A46: Activated Carbon | B46: kgs | C46: 75268 | D46: 28323 | E46: 59022 | F46: 62735 | G46: 225348 | H46: 0.05
A47: Lime / hydrated lime | B47: kgs | C47: 1230893 | D47: 1035864 | E47: 832982 | F47: 802189 | G47: 3901928 | H47: 0.8700067336
A48: Fuel oil | B48: ltrs | G48: 0 | H48: -
A49: Gas | B49: m3 | C49: 343030 | D49: 340800 | E49: 389710 | F49: 755380 | G49: 1828920 | H49: 0.41
A50: Other | G50: 0
M51: 202651
A52: Summary | B52: Line/Unit | C52: Q1 | D52: Q2 | E52: Q3 | F52: Q4 | G52: Year Total | I52: Hrs in year
A53: Availability of waste combustion by line, hrs **** | B53: 1 | C53: 2160 | D53: 1587 | E53: 2101.5 | F53: 1799 | G53: =SUM(C53:F53) -> 7647.5 | H53: =G53/8760 -> 0.8730022831 | I53: 8760
B54: 2 | C54: 2044 | D54: 2078 | E54: 1240 | F54: 2095 | G54: =SUM(C54:F54) -> 7457 | H54: =G54/8760 -> 0.8512557078
B55: 3 | C55: 2160 | D55: 2002.2 | E55: 944 | F55: 1471.5 | G55: 6577.7 | H55: 0.7508789954
B56: 4 | C56: 1963 | D56: 1639 | E56: 2075 | F56: 1976.5 | G56: 7653.5 | H56: 0.8736872146
B57: 5 | C57: 1662.5 | D57: 2094 | E57: 2208 | F57: 1695.5 | G57: 7660 | H57: 0.8744292237
A58: Overall Availability, mean avg. of all lines, hrs | C58: =AVERAGE(C53:C57) -> 1997.9 | D58: 1880.04 | E58: =AVERAGE(E53:E57) -> 1713.7 | F58: =AVERAGE(F53:F57) -> 1807.5 | G58: =SUM(C58:F58) -> 7399.14 | H58: 0.8446506849
A59: Hours of turbine operations, hrs | B59: 1 | C59: 2119.5 | D59: 2173 | E59: 1820.5 | F59: 1888 | G59: 8001 | H59: 0.9133561644
A60: Hours of turbine operations, hrs | B60: 2 | C60: 2152 | D60: 2184 | E60: 1911 | F60: 2133.5 | G60: 8380.5 | H60: 0.9566780822
A61: Hours of turbine operations, hrs | B61: 3 | C61: 2052 | D61: 2177 | E61: 2192 | F61: 805 | G61: 7226 | H61: 0.8248858447
A62: Hours of turbine operations, hrs | B62: 4 | C62: 862.5 | D62: 0 | E62: 0 | F62: 1448.5 | G62: 2311 | H62: 0.2638127854
A63: Hours of turbine operations, hrs | B63: 5 | C63: 1228.5 | D63: 1442 | E63: 1493.2 | F63: 1442.5 | G63: 5606.2 | H63: =G63/8760 -> 0.6399771689
A64: Hours of heat / steam export (Boiler production) | C64: 9999 | D64: 9394 | E64: 8568 | F64: 9023 | G64: 36984 | H64: n/a
A65: Net Calorific Value of waste | B65: MJ/kg | C65: 16.42709352 | D65: 15.79873428 | E65: 17.12042132 | F65: 17.99952787 | G65: =AVERAGE(C65:F65) -> 16.83644425
A66: Abnormal Events | B66: qty. | G66: 0 | H66: no
A67: Abnormal operation | B67: hours | C67: 0 | D67: 0 | E67: 0 | F67: 0 | G67: 0 | H67: 0
A68: Permit Breaches | B68: qty. | C68: 6 | D68: 6 | E68: 13 | F68: 2 | G68: 0 | H68: no

Sheet Operational Summary
A1: Annual Performance Report 2023 | E1: LondonEnergy Ltd
A3: Summary of Plant Operations and Maintenance during the reporting year | K3: Notes:
A5: LEL carry out annual Boiler, Turbine and Flue Gas Treatment (FGT) outages to comply with Statutory inspections and testing. Each Boiler and FGT's are taken off line, cleaned, inspected visually and by means of Non-Destructive Testing (NDT). Boiler tubes are replaced with new where identified to be below standards and all wear parts replaced where required to ensure reliability and reduce downtime. Turbines are taken off for survey every four years (one each year) to replace and repair the Turbine blades and bearings to achieve the best efficiency possible. During the Turbine surveys all mechanical and electrical components i.e. pumps, motors, valves etc are inspected, tested and repaired/replaced as required. TA4 run hours low due to alternator rewind | K5: Include summary of key operational and/or mainteanance activity undertaken in the year, such as any major component upgrades and/or replacements
A29: Summary of Residue Handling for the reporting year
A31: All IBA stored on site for the 48 hour cooling period and then sent to Fortis for processing. All Fly Ash And APCr residues are pnematically conveyed to one of two residue silos, loaded into tankers for precessing at a Castle Environmental facility. | K31: Include in here a summary of residue handling regimes and destinations

Sheet Perf. Form 1
A1: 2023 | B1: Annual Reporting Performance Form 1
A3: Permit EPR/YP3033BE | F3: Operator: | G3: 0
A4: Facility: | B4: LondonEnergy Ltd | F4: Form: | G4: Performance 1
A6: Reporting Period from: | D6: 2023-01-01 | F6: to: | G6: 2023-12-31
A8: 2023 | B8: Annual Reporting of Waste Disposal and Recovery
A9: Waste Description | C9: Disposal Route(s) | E9: Disposal Tonnes | G9: Recovery Tonnes | I9: % / tonne of waste incinerated
A10: 1) Hazardous Wastes
A11: APC Residues | C11: Castle Environmental | E11: 11210 | I11: =SUM(E11:H11)/'Operational Data'!G18 -> 0.0231651131
A12: IBA
A13: Bulky waste
A15: Total Hazardous Waste | E15: =SUM(E11:F14) -> 11210 | G15: 0 | I15: =SUM(E15:H15)/'Operational Data'!G18 -> 0.0231651131
A17: 2) Non-Hazardous Wastes
A18: IBA | C18: Fortis IBA Ltd | G18: 86388.89 | I18: =SUM(G18)/'Operational Data'!G18 -> 0.1785199293
A19: Ferrous Metal | C19: Metal Recycler | G19: 33090.98 | I19: =SUM(G19)/'Operational Data'!G18 -> 0.0683814714
A20: Process Water
A21: ETP sludge | E21: 1414.54 | I21: =SUM(E21:H21)/'Operational Data'!G18 -> 0.002923102506
A23: Total Non-Hazardous Waste | E23: =E21 -> 1414.54 | G23: =SUM(G18:H22) -> 119479.87 | I23: =SUM(G23)/'Operational Data'!G18 -> 0.2469014007
A24: TOTAL WASTE | E24: =SUM(E11:F14)+E21 -> 12624.54 | G24: =SUM(G18:H19) -> 119479.87 | I24: =SUM(E24:H24)/'Operational Data'!G18 -> 0.2729896163
A26: Operator’s comments :
A31: 2023 | B31: Annual Reporting of Water and Other Raw Material Usage
A32: Raw Material | E32: Usage | G32: Unit | H32: Specific Useage | J32: Unit
A33: Mains Water | E33: ='Operational Data'!G42 -> 170456000 | G33: lts | H33: =E33/'Operational Data'!G18 -> 352.2419732 | J33: lts/te
A34: Total Water | E34: ='Operational Data'!G43+'Operational Data'!G42 -> 932883000 | G34: lts | H34: =E34/'Operational Data'!G18 -> 1927.773435 | J34: lts/te
A35: Urea / Ammonia | E35: ='Operational Data'!G45 -> 581340 | G35: kg | H35: =E35/'Operational Data'!G18 -> 1.201320861 | J35: kg/te
A36: Activated Carbon | E36: ='Operational Data'!G46 -> 225348 | G36: kg | H36: =E36/'Operational Data'!G18 -> 0.4656745681 | J36: kg/te
A37: Lime / hydrated lime / Sodium Bicarb. | E37: ='Operational Data'!G47 -> 3901928 | G37: kg | H37: =E37/'Operational Data'!G18 -> 8.063211726 | J37: kg/te
A39: Operator’s comments :
A43: 2023 | B43: Annual Reporting of other performance indicators
A44: Parameter | C44: Results by Line
C45: A1 | D45: A2 | E45: A3 | F45: A4 | G45: A5 | I45: Turbine 1 | J45: Turbine 2
A46: Operating hours for the year, hours | C46: 8760 | D46: 8760
A47: Number of periods of abnormal operation, qty.
A48: Cumulative hours of abnormal operation for this year, hours
A50: Operator’s comments :
A51: Due to the nature of the boilers (5 Boilers), flue gas treatment (2 FGT streams) and stack (2 Stacks) configuration for the site, the operating hours is 8760 for each stack.
A54: Signed: | B54: A. Jemal | G54: Date: | H54: 2024-01-27

Sheet Energy Form 1
A1: 2023 | B1: Annual Reporting of Energy Usage/Export
A3: Permit EPR/YP3033BE | F3: Operator: | G3: LEL
A5: Facility: | B5: LondonEnergy Ltd | F5: Form: | G5: Energy 1
A7: Reporting Period from: | D7: 2023-01-01 | F7: to: | G7: 2023-12-31
A9: Energy Source | F9: Unit | G9: Specific Useage (KWh/tonne incinerated
A10: Electricity Produced | D10: ='Operational Data'!G24 -> 241315 | F10: MWh | G10: =(D10*1000)/'Operational Data'!G18 -> 498.6698723
A11: Electricity Imported | D11: ='Operational Data'!G27 -> 130 | F11: MWh | G11: =(D11*1000)/'Operational Data'!G18 -> 0.2686409191
A12: Electricity Exported | D12: ='Operational Data'!G25 -> 202651 | F12: MWh | G12: =(D12*1000)/'Operational Data'!G18 -> 418.77193
A13: Gas Oil | D13: 11458 | F13: tonnes
A14: Steam/hot water exported | D14: 0 | F14: GWh | G14: -
A18: Operator’s comments :
A29: Signed: | B29: A. Jemal | G29: Date: | H29: 2024-01-27

Sheet Permit Compliance
A1: Annual Performance Report 2023
A3: Summary of Permit Compliance
A5: Compliance with permit limits for continuously monitored pollutants
A7: The plant met its emission limits as shown in the table below:
A8: Substance | C8: Percentage time compliant during operation Note 1 | H8: Notes:
C9: Half-hourly limit | D9: Daily limit | H9: Note 1: Please report to 2 decimal places, i.e. xx.xx% Note 2: Please provide a brief summary of each notification or non-compliance in the table (rather than just referring to notifications that were sent to the Regulator), including stating the value of measured result for any ELV exceedances.
A10: Particulates | C10: 0.9999 | D10: 1
A11: Oxides of nitrogen | C11: 0.9998 | D11: 1
A12: Sulphur dioxide | C12: 0.9999 | D12: 1
A13: Carbon monoxide | C13: 0.9996 | D13: 0.99178
A14: Total organic carbon | C14: 0.999 | D14: 0.99726
A15: Hydrogen chloride | C15: 1 | D15: 1
A16: Hydrogen fluoride | C16: NA | D16: NA
C17: =AVERAGE(C10:CXW15) -> 0.9989366667 | D17: =AVERAGE(C10:CXW15) -> 0.9989366667
A19: Summary of any notifications or non-compliances under the permit
A20: Date | B20: Summary of notification or non-compliance [including Line/Reference]Note 2 | D20: Reason | F20: Measures taken to prevent reoccurrence
A21: 2023-01-10 | B21: YP3033BE_EP_2023_AE001 | C21: 1 x 30 minute TOC exceedance was observed between 13:59 – 14:29 pm. During this period, boiler 1 experienced an explosion from a suspected gas bottle causing CO and TOC to momentarily spike to very high levels which subsequently cleared. | D21: Gas bottle explosion | F21: Adjustments were made to try to control emissions and to stabilise the boiler, which reduced the emissions following the explosion.
A22: 2023-02-17 | B22: YP3033BE_EP_2023_AE002 | C22: The mechanical team were attempting to clear a blockage on the precipitator on boiler 4. An access door was opened in order to remove the blockage to allow the material to move freely. The blockage was cleared, however the material that had built up on top of it started releasing through the opened door. The material built up on the floor under the precipitator and the area was cordoned off and immediately cleared up. | D22: Lime screw blockage | F22: Not identified, the door design was different to that typically for the other precipitators - Did not have hinges on the door design. This prevented the door to be opened gradually in a controlled manner. Modifications were made to the door and additional signage has been placed to prevent re-occurance.
A23: 2023-03-06 | B23: YP3033BE_EP_2023_AE003 | C23: 6 x 10 minute CO Exceedances contributed towards the 1 x daily Average CO exceedance. Several explosions from Boiler 1 in a short period of time was noted between 20:00 – 20:30hrs, which caused the daily average to go over 50 mg/Nm3. The waste from bunker 2 was seen to be wet, which contributed to poor performance. Emissions of CO decreased, but the daily average recorded 51.14 mg/Nm3 for the day. | D23: Gas bottle explosion | F23: CO Estimation tool has been developed to anticipate boiler explosion impacts on the emissions to allow a more proactive monitoring method.
A24: 2023-03-07 | B24: YP3033BE_EP_2023_AE004 | C24: 9 x 10 minute CO Exceedances observed by several explosions throughout the day. Significant spikes were observed between 19:00 – 20:00 pm within Boiler 3, which affected both A1 and A2 stack emissions. Poor refuse material from Bunker 5 is the expected cause of increased emissions. It was instructed to stop feeding from bunker 5. Further plant adjustments were made and holding burners were put in service to control emissions and stabilise the boiler. | D24: Waste quality
A25: 2023-03-07 | B25: YP3033BE_EP_2023_AE005 | C25: 7 x 10 minute CO Exceedances contributing towards the 1 x daily CO exceedance. Significant spikes were observed between 19:00 – 20:00 pm within Boiler 3, which affected both A1 and A2 stack emissions. Poor refuse material from Bunker 5 is the expected cause of increased emissions. It was instructed to stop feeding from bunker 5. Further plant adjustments were made and holding burners were put in service to control emissions and stabilise the boiler. | D25: Waste quality
A26: 2023-03-13 | B26: YP3033BE_EP_2023_AE006 | C26: 30 Minute TOC Exceedance experienced due large gas bottle explosion within Boiler 4, resulting in poor combustion. Adjustments made to maintain stable combustion, but was not able to recover to within our limits in the specified time period. | D26: Gas bottle explosion | F26: As illustrated in the Part A, the operation team witnessed an explosion within one of the boilers. As all other process parameters remained in steady state, it is anticipated that the cause was a gas bottle entering the system
A27: 2023-03-17 | B27: YP3033BE_EP_2023_AE007 | C27: When bringing boiler 4 offline (Conducting shut down procedure), the gas burner tripped at the late stage of shut down, bringing the temperature below 8500C. This caused an increase in TOC being observed on the North stack, which resulted in a half hourly ELV breach between 23:29hrs to 23:59hrs. Waste was not being fed at the time of the exceedance, but there was residual waste on the grate. | D27: Burner Trip | F27: In effort to improve gas burner reliability in operation, LEL has called a specialist service contractor to: • Report on the current state of gas burner and what is needed to improve and recommendation for parts to be replaced • Annual Supporting visit for gas burners servicing First visit had taken place on 04/07/2022
A28: 2023-04-05 | B28: YP3033BE_EP_2023_AE008 | C28: 1 x 30 minute TOC exceedance: Boiler 2 Feeder Ram stopped operating for a period of time due to a mechanical fault. Whilst recovering the Feeder Ram operation, the Holding Burner tripped, resulting in loss of furnace temperature, which resulted in an increase in emissions. Adjustments were made to try to control emissions and to stabilise the boiler, but we were unable to recover within the specified period. | D28: Burner Trip
A29: 2023-04-17 | B29: YP3033BE_EP_2023_AE009 | C29: 1 x 30 minute TOC exceedance – Boiler 2 Drum level was lost during a period of poor quality wet waste from the bottom of bunker 2, forcing the boiler into emergency shut down, resulting in a loss of both gas burners, primary and secondary air fans causing a drop in furnace temperature. Adjustments were made to stabilise the boiler, but we were unable to recover within the specified period. | D29: Burner Trip
A30: 2023-05-07 | B30: YP3033BE_EP_2023_AE010 | C30: 1 x 30 minute TOC exceedance – Boiler 5 feeder ram failed due to a false signal, resulting in a gap in the furnace. The holding burner failed to ignite at the same time. Adjustments were made to both the primary and secondary air fans along with use of the startup burner to stabilise the combustion chamber, but we were unable to recover within the specified period. The Holding burner and feeder ram front limit switch have now been repaired & proved to work when required. | D30: Burner Trip
A31: 2023-05-26 | B31: YP3033BE_EP_2023_AE011 | C31: Challenging waste entered the boilers between 10:59am – 11:29am, creating large spike in SO₂ and elevated levels of HCL. The operations team increased lime dosing across Flue Gas Treatment (FGT) Streams 1 & 2 to mitigate raised acidic emissions, however, the team encountered partially blocked lime screws on both streams. The operations team attended the FGT streams and carried out a manual flight aeration and screw unblocking procedure, which increased lime dosing immediately, but there was insufficient time within the 30 minute period to recover from the excessively high SO₂ readings. Emission levels reduced following this and remained low for the remainder of the day. | D31: Waste quality | F31: Following a review with both the operations team and mechanical department, the following corrective measure is to be placed to prevent re-occurrence. • The frequency of the plant preventative maintenance conducted on the aerators by the mechanical department will be inputted into the system for a weekly check.
A32: 2023-05-27 | B32: YP3033BE_EP_2023_AE012 | C32: Between the period of 13:29hrs to 13:59hrs, challenges were faced with the gas burners (Holding and start-up) on boiler 3, which cause unstable combustion. This resulted in an increase in TOC and CO, which resulted in a 30 minute TOC exceedance of 24 mg/Nm3 in comparison to the emission limit value of 20 mg/Nm3. Combustion conditions stabilised and remained low for the remainder of the day. | D32: Burner Trip | F32: In effort to improve gas burner reliability in operation, LEL has called a specialist service contractor to: • Report on the current state of gas burner and what is needed to improve and recommendation for parts to be replaced • Annual Supporting visit for gas burners servicing First visit had taken place on 04/07/2025
A33: 2023-06-04 | B33: YP3033BE_EP_2023_AE013 | C33: 1 x 30 minute TOC exceedance – Due to feeder ram failure combined with gas burners (holding & start-up) failing on boiler 4. Temporary repair carried out. Spares parts required are on order. | D33: Waste quality | F33: Following investigation, the following actions will be implemented to target waste quality at the bottom of the bunker: - Operations to add health check of the sump pumps to the daily operational checks - Operations to roll out bunker management instructions to crane drivers.
A34: - | B34: YP3033BE_EP_2023_AE014 | C34: ’There is no exceedance relating to AE014 and this reference number was not used for the 2023 exceedance list | D34: - | F34: -
A35: 2023-07-05 | B35: YP3033BE_EP_2023_AE015 | C35: HCl daily limit exceedance due to challenges with the FGT1 Lime silo discharge screw. As FGT2 is on it’s planned outage, during this period the south stack was only being fed by the FGT1. Boilers 1 & 2 loads were reduced to mitigate emissions. Maintenance department were promptly notified of FGT1 lime silo discharge screw jammed and made efforts to rectify. The MMD successfully un-blocked the line and further support was required by the E&I department to re-instate the operation of the screw. | D35: Lime screw blockage | F35: Following an investigation involving the mechanical and operations department the following actions will be performed to mitigate any re-occurrences: - Run Solenoid Failure report on D365 in 6 months time on Lime system (FGT) to review frequency of failure. - Investigate interlock system on Lime Screw feeder(s) system to prevent screw feeding operation when pneumatic valve at exit is closed. Validate effectiveness of logic.
A36: 2023-07-23 | B36: YP3033BE_EP_2023_AE016 | C36: TOC 30 minute limit exceedance – Due to a large explosion from suspected gas bottle in boiler 5. Spike was so high the average could not be reduced sufficiently even with a level of 1.1mg for the remaining 25 minutes | D36: Gas bottle explosion | F36: The site has recently started recording the gas bottles explosions more granular.
A37: 2023-07-28 | B37: YP3033BE_EP_2023_AE017 | C37: Late in the evening, one of the sump pumps in the boiler basement tripped. Instead of tripping the local protection, the trip occurred at the main distribution board. This resulted in power issues to both boiler 1 and boiler 5, placing both into emergency shutdown. | D37: sump pump failure | F37: Following an investigation involving the E&I and operations department, the following corrective actions were collated: - Design protection is 100 amp fuse. Reduce fuses in sump pump starter within C10 to 63 amp. - Investigate the potential of using C6 as primary instead of C10. This will need coordination with operations on availability for investigation in line with plant availability. - Install smaller capacity fuses to protect 400-amp circuit breaker - Investigate UPS functionality for Boiler 1, 4 & 5 to confirm operating as expected - Create a robust OTNOC plan.
A38: 2023-07-28 | B38: YP3033BE_EP_2023_AE018 | C38: Late in the evening, one of the sump pumps in the boiler basement tripped. Instead of tripping the local protection, the trip occurred at the main distribution board. This resulted in power issues to both boiler 1 and boiler 5, placing both into emergency shutdown. Operations also manually conducted an emergency shutdown of boiler 4 due to an increase in water flow to the boiler following the shutdown of both boiler 1 & 5. Power was restored to the board and the plant was brought back online in a controlled manner. | D38: sump pump failure
A39: 2023-08-04 | B39: YP3033BE_EP_2023_AE019 | C39: The operations control room lost CEMs communication at 08:15 am. Following further investigation, the connection between the SICK panels and Envirosoft PC (Data Acquisition Handling System (DAHS)) had been lost. IT was requested to attend site out of hours and data returned to the DAHS by 12:30 pm. Information within the CEMs analyser cabinet was still available during the period, but data to the DAHS was not registering and not available during this period. | D39: Data loss | F39: Following an internal review and discussion with IT, who rectified the issue at the time, the following actions are to be progressed: - Investigate power supply and remediate if required within the CEMS cabinet. - A lesson learnt / Event log is to be circulated to raise awareness of remediation in a similar instance of data loss. - Additional support with the DAHS has been requested from our CEMS system support contractor, which suggested to replace the DSU, which will be pursued by LEL.
A40: 2023-08-20 | B40: YP3033BE_EP_2023_AE020 | C40: 1 x 30 minute Dust Exceedance whilst attempting to carry out a precoat procedure on FGT Stream No.4 after maintenance. The Main Inlet damper was shut at time of the emission, but as soon as lime was introduced for the precoat, the dust reading increased. Suspect filter bag issue within a compartment. Actions were carried out to reduce dust levels, by shutting down precoat procedure, ceased lime dosing and closing the FGT Stream Main Outlet Damper, but we were unable to recover within the specified 30min period | D40: inadequate procedures | F40: • Create Handover procedures or add a section on D365 for works handover (Written and recorded) • A final checklist for MMD handover to be developed
A41: 2023-08-21 | B41: YP3033BE_EP_2023_AE021 | C41: 1 x 30 minute TOC exceedance – Boiler 2 Holding Burner ignition and stability issues. Whilst attempting to raise steam on Boiler 2, the holding burner tripped and failed to re-ignite. Root cause found to be damaged cables on a Flame Eye. Flame eye was replaced with alternative and holding burner ignited and burner flame was stable. TOC levels during the period were elevated and reduced once stable flame established. We were however unable to recover to permitted levels within the specified time frame. | D41: Burner Trip | F41: Flame eye was replaced with alternative and further maintenance review conducted.
A42: 2023-05-21 | B42: YP3033BE_EP_2023_AE022 | C42: Following investigation into a discrepancy identified between the NOx values from the south Duty and standby analysers it was identified that an error in the development of the QAL2 function for the south standby analyser was identified during the previous campaign performed by the periodic monitoring company. Data was evaluated eliminating the south standby readings to identify if there were any exceedances with the more accurate analyser. | D42: Function Error | F42: Following further review, the following points have or are to be performed to rectify any information. • Part A reports have been sent to the EA and corrections are to be made to the WID reports sent to discard the error data. • Alterations have been made to the QAL2 contract to ensure 3 yearly QAL2 is performed on the analysers AST / QAL2 tracker has been developed providing visibility on previous and up-coming testing requirements
A43: 2023-07-15 | B43: YP3033BE_EP_2023_AE023 | C43: Following investigation into a discrepancy identified between the NOx values from the south Duty and standby analysers it was identified that an error in the development of the QAL2 function for the south standby analyser was identified during the previous campaign performed by the periodic monitoring company. Data was evaluated eliminating the south standby readings to identify if there were any exceedances with the more accurate analyser. | D43: Function Error | F43: Following further review, the following points have or are to be performed to rectify any information. • Part A reports have been sent to the EA and corrections are to be made to the WID reports sent to discard the error data. • Alterations have been made to the QAL2 contract to ensure 3 yearly QAL2 is performed on the analysers AST / QAL2 tracker has been developed providing visibility on previous and up-coming testing requirements
A44: 2023-07-16 | B44: YP3033BE_EP_2023_AE024 | C44: Following investigation into a discrepancy identified between the NOx values from the south Duty and standby analysers it was identified that an error in the development of the QAL2 function for the south standby analyser was identified during the previous campaign performed by the periodic monitoring company. Data was evaluated eliminating the south standby readings to identify if there were any exceedances with the more accurate analyser. | D44: Function Error | F44: Following further review, the following points have or are to be performed to rectify any information. • Part A reports have been sent to the EA and corrections are to be made to the WID reports sent to discard the error data. • Alterations have been made to the QAL2 contract to ensure 3 yearly QAL2 is performed on the analysers AST / QAL2 tracker has been developed providing visibility on previous and up-coming testing requirements
A45: 2023-07-17 | B45: YP3033BE_EP_2023_AE025 | C45: Following investigation into a discrepancy identified between the NOx values from the south Duty and standby analysers it was identified that an error in the development of the QAL2 function for the south standby analyser was identified during the previous campaign performed by the periodic monitoring company. Data was evaluated eliminating the south standby readings to identify if there were any exceedances with the more accurate analyser. | D45: Function Error | F45: Following further review, the following points have or are to be performed to rectify any information. • Part A reports have been sent to the EA and corrections are to be made to the WID reports sent to discard the error data. • Alterations have been made to the QAL2 contract to ensure 3 yearly QAL2 is performed on the analysers AST / QAL2 tracker has been developed providing visibility on previous and up-coming testing requirements
A46: 2023-07-16 | B46: YP3033BE_EP_2023_AE026 | C46: Following investigation into a discrepancy identified between the NOx values from the south Duty and standby analysers it was identified that an error in the development of the QAL2 function for the south standby analyser was identified during the previous campaign performed by the periodic monitoring company. Data was evaluated eliminating the south standby readings to identify if there were any exceedances with the more accurate analyser. | D46: Function Error | F46: Following further review, the following points have or are to be performed to rectify any information. • Part A reports have been sent to the EA and corrections are to be made to the WID reports sent to discard the error data. • Alterations have been made to the QAL2 contract to ensure 3 yearly QAL2 is performed on the analysers AST / QAL2 tracker has been developed providing visibility on previous and up-coming testing requirements
A47: 2023-09-08 | B47: YP3033BE_EP_2023_AE027 | C47: 1 x 30 minute TOC exceedance – Boiler 5 had an explosion due to suspected gas cylinder within waste stream. TOC lemissions spiked, O2 reduced to 6.2% and CO emissions spiked along with furnace temperature spiking to 1000deg c. We were however able to quickly control the firing of the boiler and brought the furnace to a normal operating condition within a few minutes but the TOC spike took us just over the 30 min permitted levels. | D47: Gas bottle explosion | F47: All explosions are now being recorded to log the extent of the challenge. LondonEnergy is also investigating the potential of implementing ‘Storing and depressurising nominally empty nitrous oxide canisters: RPS 289’, which will support the correct disposal of gas canisters.
A48: 2023-10-26 | B48: YP3033BE_EP_2023_AE028 | C48: following a significant explosion within boiler 5, a high drum level alarm was triggered, forcing the boiler into emergency shutdown. This resulted in pro-longed elevated emissions at the A2 North stack as the boiler became off-line. The operations department conducted their standard shut-down checks and following cool-down of the boiler and on inspection, there was some integrity damage to the quench bath from the explosion. Recording of the boiler 5 camera clearly indicates the explosion occurring at 17:07 pm. | D48: Boiler explosion | F48: All explosions are now being recorded to log the extent of the challenge. LondonEnergy is also investigating the potential of implementing ‘Storing and depressurising nominally empty nitrous oxide canisters: RPS 289’, which will support the correct disposal of gas canisters.
A49: 2023-12-02 | B49: YP3033BE_EP_2023_AE029 | C49: 1 x 30 minute TOC exceedance – Boiler 3 experienced some extremely volatile waste, which created several large spikes in TOC’s and three large CO spikes. TOC levels during the 30 minute period were elevated and reduced significantly once combustion became stabilised. Several adjustments were made to combustion in an attempt to reduce the elevated levels. We were however unable to recover to within permitted levels within the specified time frame. | D49: Waste quality | F49: Waste inspections are continuing on the tipping apron by the waste operations team and any non-conforming waste segregated.
A50: 2023-12-16 | B50: YP3033BE_EP_2023_AE030 | C50: Explosion within the boiler resulted in a sharp elevation for both TOC and CO emissions. Due to the nature of the emission, the 30-minute exceedance for TOC was exceeded. | D50: Gas bottle explosion | F50: All explosions are now being recorded to log the extent of the challenge. LondonEnergy is also investigating the potential of implementing ‘Storing and depressurising nominally empty nitrous oxide canisters: RPS 289’, which will support the correct disposal of gas canisters.
A52: Summary of any complaints received and actions to taken to resolve them.
A53: Date | B53: Summary of complaint [including Line/Reference] | F53: Measures taken to prevent reoccurrence
A54: 2023-10-10 | B54: Caller is reporting the odour from the incinerator at Meridian Waters, London, N18 described as a burning smell and rated as 5/6. It was noticed at 10:05 and is not inside the home with the windows and doors closed. The caller is 1 mile from the site and the weather is sunny, blue sky, there is a mild breeze, direction unknown. Location in the vicinity of postcode N18 2NS.’’ | D54: Incident investigated | F54: From reviewing the operational conditions of the site on 10th October 2023, there were no abnormal events / incidents logged for the site that may have caused the source of burning smell. Due to the distance between the site and the complaint, it is very likely that a significant fire would be required to formulate a odour that would transport that distance from the incinerator. There are several other industrial activities that occur between the site and the complaint location, which may have been the cause of the odour.

Sheet Public Liasion
A1: Annual Performance Report 2023 | E1: LondonEnergy Ltd
A3: Details of Public & Stakeholder Liasion
A5: Summary of events held during the reporting year.
A6: Date | C6: Description
A7: 2023-04-11 | C7: LondonEnergy participated at the BuildForce Programme event hosted by the Wates Group. It was great opportunities for the team to discuss to service leaver roles within the energy from waste sector.
A8: 2023-07-10 | C8: We welcomed four year 12 students, from Harris Academy school in Tottenham as part of a week-long mentorship programme aimed at introducing the next generation of talent to the workplace. Each student was paired with a mentor who provided them with tailored career support. The mentees also took part in a CV workshop and networked with colleagues from throughout our organisation. The mentorship programme was a great success as the students gained valuable insight into the working world and developed their skill set.
A9: 2023-07-27 | C9: Waltham Forest Council – Career Fair – Our HR and Engineering team spoke to local people about LondonEnergy and our current job openings.
A10: 2023-09-04 | C10: Pinehole Community Group – local residents from Islington, Enfield and Hackney visit the EcoPark to visit our energy plant and see the upcoming resource recovery facility at our EcoPark site. The group were interested to learn how waste and recycling is managed in north London and the plans for the future.
A11: 2023-08-08 | C11: Armed Forces Careers Fair – Colchester – Recruitment team and LEL Project Manager exhibit at the event to talk about the current electrical and engineering roles to people who have recently left the armed forces.
A12: 2023-10-09 | C12: VISIONS CIO + CISO UK panel Quartz Network Twickenham Stadium – Our Head of IT chaired a panel on The Human Factor in Digital Transformation
A13: 2023-09-01 | C13: Hochschule Konstanz University of Applied Sciences. The students saw first-hand the process of generating energy from waste. They visited areas including the Boilers, Turbines, and Control Room.
A14: 2023-11-05 | C14: Capel Manor College Environmental – Visited the EcoPark to our Energy plant and find out how we manage the waste for Enfield borough residents.
A15: 2023-11-30 | C15: A-level chemistry students from London Academy of Excellence – Stratford, East London The visit was part of their research work related to their studies. The students wanted to see the process firsthand and learn about the use of waste materials generating energy.
A16: 2023-12-10 | C16: Middlesex University - Health, safety environmental, and occupational management students visited LondonEnergy as a case study for their dissertations. They wanted to look at the potential use of AI technology in a plant our and to see the impact on reducing human risk. Other students wanted to explore the effectiveness of health and safety training and examine what measures are in place in a work environment at an Energy Centre.
A17: List of events planned for next year
A18: Date | C18: Description
A30: If you wish to be involved in the public liasion programme, please contact deanna.donaldson@londonenergyltd.com

Sheet Water
A1: Annual Performance Report 2023 | E1: LondonEnergy Ltd
A3: Emissions to Water
A5: Summary of monitoring undertaken and compliance
A6: Quarterly monitoring of emissions to sewer. Continuous sampling is undertaken. Flow weighted automatic seven day sample is collected. Samples are combined to give a monthly sample, one monthly sample to be analysed per quarter).
A13: Commentary on any specific events
A14: Date & Event | C14: Description
A15: NA | C15: NA
A22: Emissions to Water / Sewer
A23: Parameter | D23: Monitoring Frequency | F23: Limit | G23: Target | H23: Max. | I23: Average
A24: Dieldrin ng/l | B24: Dieldrin ng/l | C24: Dieldrin ng/l | D24: Quarterly | F24: 50 ng/l | G24: NA | H24: NA | I24: 20
A25: Gamma- Hexachlorocyclohexane ng/l | B25: Gamma- Hexachlorocyclohexane ng/l | C25: Gamma- Hexachlorocyclohexane ng/l | D25: Quarterly | F25: 100 ng/l | G25: NA | H25: NA | I25: 20
A26: Polychlorinated biphenyls ng/l | B26: Polychlorinated biphenyl 28 ng/l | C26: Polychlorinated biphenyl 28 ng/l | D26: Quarterly | F26: 50 ng/l | G26: NA | H26: NA | I26: 5
A27: Trifluralin ng/l | B27: Trifluralin ng/l | C27: Trifluralin ng/l | D27: Quarterly | F27: 50 ng/l | G27: NA | H27: NA | I27: 20
A28: Hexachlorobenzene ng/l | B28: Hexachlorobenzene ng/l | C28: Hexachlorobenzene ng/l | D28: Quarterly | F28: 300 ng/l | G28: NA | H28: NA | I28: 20
A29: Hexachlorobutadiene ng/l | B29: Hexachlorobutadiene ng/l | C29: Hexachlorobutadiene ng/l | D29: Quarterly | F29: 50 ng/l | G29: NA | H29: NA | I29: 20
A30: Trichlorobenzene ng/l | B30: Trichlorobenzene ng/l | C30: Trichlorobenzene ng/l | D30: Quarterly | F30: 50 ng/l | G30: NA | H30: NA | I30: 400
A31: Dichlorvos ng/l | B31: Dichlorvos ng/l | C31: Dichlorvos ng/l | D31: Quarterly | F31: 50 ng/l | G31: NA | H31: NA | I31: 20
A32: Fenitrothion ng/l | B32: Fenitrothion ng/l | C32: Fenitrothion ng/l | D32: Quarterly | F32: 50 ng/l | G32: NA | H32: NA | I32: 20
A33: Simazine ng/l | B33: Simazine ng/l | C33: Simazine ng/l | D33: Quarterly | F33: 300 ng/l | G33: NA | H33: NA | I33: 20
A34: Atrazine ng/l | B34: Atrazine ng/l | C34: Atrazine ng/l | D34: Quarterly | F34: 300 ng/l | G34: NA | H34: NA | I34: 20
A35: Pentachlorophenol & it`s compounds ng/l | B35: Pentachlorophenol & it`s compounds ng/l | C35: Pentachlorophenol & it`s compounds ng/l | D35: Quarterly | F35: 300 ng/l | G35: NA | H35: NA | I35: 35
A36: Total Cadmium ug/l | B36: Total Cadmium ng/l | C36: Total Cadmium ng/l | D36: Quarterly | F36: 50 μg/l | G36: NA | H36: NA | I36: 0.1
A37: Total Mercury ug/l | B37: Total Mercury ng/l | C37: Total Mercury ng/l | D37: Quarterly | F37: 10 μg/l | G37: NA | H37: NA | I37: 0.1
A38: Chromium, copper, lead, nickel,silver and zinc in total mg/l | D38: Quarterly | F38: 5 mg/l | G38: NA | H38: NA | I38: 0.8333333333
A39: Organo-tin ng/l | D39: Quarterly | F39: 100 ng/l | G39: NA | H39: NA | I39: 0.26

Sheet CO2 N2O
A1: Annual Performance Report 2023 | C1: LondonEnergy Ltd
A3: Carbon dioxide emissions and biogenic content of waste inputs | F3: Notes:
A5: Carbon dioxide emissions (all types of plant)
B6: Annual mass of carbon dioxide released | C6: tonnes | D6: 390818.32
B7: Annual mass of carbon dioxide released per tonne of waste burned | C7: t CO2 / t waste | D7: =D6/'Operational Data'!G18 -> 0.80761379
B8: Annual mass of carbon dioxide released per MWh of energy exported | C8: t CO2 / MWh export | D8: =D6/'Operational Data'!G25 -> 1.928528949
B9: Description of how annual carbon dioxide mass emission has been calculated. See Note 1 | C9: CEMS data | F9: Note 1: Where available, data from CO2 CEMS should be used. Otherwise, only where no CEMS data is available, a suitable emissions factor should be used based on the tonnage of waste burned e.g.0.942 tCO2/t waste as per Tolvik report 2022, or other justified emissions factor - refer to embedded Environment Agency guidance note above or updated version for suitable descriptive text.
A10: Nitrous oxide emissions (only plants which use ammonia or urea to abate NOx emissions)
B11: Annual mass emissions of nitrous oxide | C11: tonnes N2O | D11: 20.84977657
B12: Description of how annual nitrous oxide mass emission has been calculated See Note 2 | C12: Periodic monitoring data is used for N2O emissions (Bi-annual) Due to contractor delays, Q4 results have not been included for Mass N2Q emissions | F12: Note 2: Where available, data from N2O CEMS should be used. If no CEMS data is available, from periodic monitoring. Otherwise, a suitable emissions factor should be used based on the tonnage of waste burned e.g. 0.0981 kgN20/t waste as per 2021 Pollution Inventory data for plants with urea-based SNCR - refer to embedded Environment Agency guidance note above or updated version for suitable descriptive text.
A13: Total annual carbon dioxide and nitrous oxide emissions. See Note 3. | C13: tonnes CO2e | D13: =(D11*298) -> 6213.233417 | F13: Note 3: Total annual carbon dioxide and nitrous oxide emissions reported as carbon dioxide equivalent where 1 tonne nitrous oxide is equivalent to 298 tonne carbon dioxide
A14: Biogenic CO2 emissions (See Note 4) | F14: Note 4: Only plants combusting residual municipal waste, refuse derived fuel or solid recovered fuel
B15: Percentage of total carbon dioxide emissions arising from biogenic waste | C15: % | D15: 0.56
B16: No. of measurements undertaken | C16: Number | D16: -
B17: Description of how percentage biogenic carbon dioxide emissions have been measured or calculated. See Note 5 | C17: the measured of biogenic fraction by net calorific value is assumed to be the same as the biogenic CO2 fraction of the total CO2 emissions from the plant | F17: Note 5: Examples include direct measurement via C14 method or BIOMA software - refer to embedded Environment Agency guidance note above or updated version for suitable descriptive text, quoting standards where relevant. Otherwise, as an approximation (and in lieu of any more accurate metrics which may be developed in future), the measured or estimated biogenic fraction by net calorific value can be assumed to be the same as the biogenic CO2 fraction of the total CO2 emissions from the plant.
A18: Biogenic fraction of waste feedstock (See Note 4)
B19: Yearly average biogenic percentage of the waste by net calorific value (NCV) | C19: % | D19: 0.56025
B20: If sampling undertaken, no. of samples used to ascertain average biogenic % above | C20: Number | D20: 3
B21: Description of how biogenic percentage (by NCV) has been calculated or estimated. See Note 6 | C21: Quarterly waste sampling results by an independent contractor | F21: Note 6: Where available, data from waste sampling should be used; otherwise, an estimated figure with justification can be used, or a figure assumed on the basis of a national average e.g. 2017 WRAP data for residual waste of 51.8% biogenic energy content - refer to embedded Environment Agency guidance note above or updated version for suitable descriptive text, quoting standards where relevant.
B23: Comments:
B24: N2O emissions are now excluded from periodic monitoring and will be part of LEL's continuous emissions monitoring. Continuous emissions Reporting start date is December 2023

Sheet Residue Quality
A1: Annual Performance Report 2023 | E1: LondonEnergy Ltd
A3: Residue Quality Monitoring Requirements
A5: Summary of monitoring undertaken and compliance
A6: Bi-monthly IBA hazardous waste assessments
A13: Commentary on any specific events
A14: Date & Event | C14: Description
A15: NA
A27: Residue Quality Monitoring Results
A28: Parameter (unit) | C28: Limit | D28: Normal Operation
D29: Bottom ash | F29: APC Residues
A30: Loss on Ignition (average %) | C30: <5% | D30: -
A31: Total Organic Carbon (average %) | C31: <3% | D31: 1.17
A32: No. of Assessments Undertaken | C32: --- | D32: 24 | F32: 4
A33: No. of Hazardous Results | C33: --- | D33: 0
A35: Comments :

Sheet Air (periodic)
A1: Annual Performance Report 2023 | E1: LondonEnergy Ltd
A3: Emissions to Air (periodically monitored)
A5: Summary of monitoring undertaken, standards used and compliance | K5: Notes:
K6: Template may require adjustment for any bespoke monitoring requirements of permit - please also check that all default ELV values, reference periods and the stated oxygen reference value match those for your plant, and edit if necessary!
A9: Results of emissions to air that are periodically monitored - oxygen reference 6%
A10: Substance | C10: Ref. Period | D10: Emission Limit Value* | F10: Average | K10: User to add additional tables as necessary, depending on whether quarterly or bi-annual reporting is required for the compliance year
F11: A1 | G11: A2 | H11: A3 | I11: A4 | J11: A5
A12: Hydrogen fluoride | C12: 1 hr | D12: 2 mg/m3 | F12: 0.04633333333 | G12: 0.04
A13: Cd and Th and their compounds | C13: 0.5-8hrs | D13: 0.05 mg/m3 | F13: 0.002533333333 | G13: 0.06366666667
A14: Hg and its compounds | C14: 0.5-8hrs | D14: 0.05 mg/m3 | F14: 0.001666666667 | G14: 0.00141 | K14: * Denotes limits that were in force until 2 December 2023; from 3 December 2023 the following new limits applied (those not listed remained unchanged):
A15: Sb, As, Pb, Cr, Co, Cu, Mn, Ni, V and their compounds | C15: 0.5-8hrs | D15: 0.5 mg/m3 | F15: 4.058666667 | G15: 0.06366666667
A16: Dioxins & Furans (I-TEQ) | C16: 6-8hrs | D16: 0.1 ng/m3 | F16: 0.0037 | G16: 0.001595 | K16: Substance | L16: Reference Period | M16: Emission Limit Value
A17: PCBs (WHO-TEQ Humans / Mammals) | C17: 6-8hrs | D17: None set ng/m3 | F17: 0.0002905 | G17: 0.0001655
A18: PCBs (WHO-TEQ Fish) | C18: 6-8hrs | D18: None set ng/m3 | F18: 1.35e-05 | G18: 9e-06 | K18: Hydrogen fluoride | L18: Average of three consecutive measurements of at least 30 minutes each | M18: 1 mg/m3
A19: PCBs (WHO-TEQ Birds) | C19: 6-8hrs | D19: None set ng/m3 | F19: 0.0012955 | G19: 0.0007935 | K19: Cd and Th and their compounds | L19: Average of three consecutive measurements of at least 30 minutes each | M19: 0.02 mg/m3
A20: Dioxins & Furans (WHO-TEQ Humans / Mammals) | C20: 6-8hrs | D20: None set ng/m3 | F20: 0.0037 | G20: 0.001585 | K20: Hg and its compounds | L20: Average of three consecutive measurements of at least 30 minutes each | M20: 0.02 mg/m3
A21: Dioxins & Furans (WHO-TEQ Fish) | C21: 6-8hrs | D21: None set ng/m3 | F21: 0.0037 | G21: 0.00159 | K21: Sb, As, Pb, Cr, Co, Cu, Mn, Ni, V and their compounds | L21: Average of three consecutive measurements of at least 30 minutes each | M21: 0.3 mg/m3
A22: Dioxins & Furans (WHO-TEQ Birds) | C22: 6-8hrs | D22: None set ng/m3 | F22: 0.0073 | G22: 0.003675 | K22: Dioxins & Furans (I-TEQ) | L22: 6-8hrs | M22: 0.06 ng/m3
A23: Anthanthrene | C23: 6-8hrs | D23: None set µg/m3 | F23: 0.0023 | G23: 0.0024
A24: Benzo(a)anthracene | C24: 6-8hrs | D24: None set µg/m3 | F24: 0.0023 | G24: 0.0024
A25: Benzo(a)pyrene | C25: 6-8hrs | D25: None set µg/m3 | F25: 0.0023 | G25: 0.0024
A26: Benzo(b)fluoranthene | C26: 6-8hrs | D26: None set µg/m3 | F26: 0.0031 | G26: 0.0032
A27: Benzo(b)naptho(2,1-d) thiophene | C27: 6-8hrs | D27: None set µg/m3 | F27: 0.0023 | G27: 0.0024
A28: Benzo(c)phenanthrene | C28: 6-8hrs | D28: None set µg/m3 | F28: 0.0023 | G28: 0.0024
A29: Benzo(ghi)perylene | C29: 6-8hrs | D29: None set µg/m3 | F29: 0.0023 | G29: 0.0024
A30: Benzo(k)fluoranthene | C30: 6-8hrs | D30: None set µg/m3 | F30: 0.0023 | G30: 0.0024
A31: Cholanthrene | C31: 6-8hrs | D31: None set µg/m3 | F31: 0.0023 | G31: 0.0024
A32: Chrysene | C32: 6-8hrs | D32: None set µg/m3 | F32: 0.0035 | G32: 0.0037
A33: Cyclopenta(cd)pyrene | C33: 6-8hrs | D33: None set µg/m3 | F33: 0.0023 | G33: 0.0024
A34: Dibenzo(ai)pyrene | C34: 6-8hrs | D34: None set µg/m3 | F34: 0.0023 | G34: 0.0024
A35: Dibenzo(ah)anthracene | C35: 6-8hrs | D35: None set µg/m3 | F35: 0.0023 | G35: 0.0024
A36: Fluoranthene | C36: 6-8hrs | D36: None set µg/m3 | F36: 0.072 | G36: 0.076
A37: Indeno(123-cd) pyrene | C37: 6-8hrs | D37: None set µg/m3 | F37: 0.0023 | G37: 0.0024
A38: Naphthalene | C38: 6-8hrs | D38: None set µg/m3 | F38: 11.1 | G38: 16.4
A39: Comments :
A40: Quarterly results for Q1-Q3 were used in the above calacuated emissions. Q4 and Biannual results for July to December are not included due to contractor delays. Air periodic results to be resubmitted once reports are received. Updated 29/02/2024- In accordance with our monitoring requirements outlined in the WIBREF variation, certain parameters have been excluded from the Q4 monitoring and analys,. Dioxins, Furans and PCB: Q4 results added to annual averages.

Sheet Air (CEMS)
A1: Annual Performance Report 2023 | H1: LondonEnergy Ltd
A3: Emissions to Air (continously monitored)
N4: Notes:
A5: Summary of monitoring undertaken, standards used and compliance | N5: Template may require adjustment for any bespoke monitoring requirements of permit
N6: Please check that all default ELV values match those for your plant and edit if necessary!
N7: Report to 1 decimal place
A11: Results of emissions to air that are continuously monitored (maximum and average values for each line) - oxygen reference 11%
A12: Substance | B12: Reference Period | C12: Emission Limit Value** | D12: A1 | F12: A2 | H12: A3 | J12: A4 | L12: A5
D13: Max. | E13: Avg. | F13: Max. | G13: Avg. | H13: Max. | I13: Avg. | J13: Max. | K13: Avg. | L13: Max. | M13: Avg. | N13: ** Denotes limits that were in force until 2 December 2023; from 3 December 2023 the following new limits applied (those not listed remained unchanged):
A14: Oxides of nitrogen | B14: Daily mean | C14: 200 mg/m3 | D14: =NOx!O19 -> 211.4 | E14: =NOx!N19 -> 160.7333333 | F14: =NOx!O34 -> 192 | G14: =NOx!N34 -> 157.9583333
B15: ½ hourly mean | C15: 400 mg/m3 | D15: =NOx!N19 -> 160.7333333 | E15: =NOx!L19 -> 160.7333333 | F15: =NOx!M34 -> 312.6 | G15: =NOx!L34 -> 157.9583333 | N15: Substance | O15: Reference Period | P15: Emission Limit Value
A16: Particulates | B16: Daily mean | C16: 10 mg/m3 | D16: =Particulates!O19 -> 6 | E16: =Particulates!N19 -> 2.125 | F16: =Particulates!O34 -> 6.3 | G16: =Particulates!N34 -> 1.891666667
B17: ½ hourly mean | C17: 30 mg/m3 | D17: =Particulates!M19 -> 20.9 | E17: =Particulates!L19 -> 2.125 | F17: =Particulates!M34 -> 86.5 | G17: =Particulates!L34 -> 1.891666667 | N17: Oxides of nitrogen | O17: Daily mean | P17: 180 mg/m3
A18: Total Organic Carbon | B18: Daily mean | C18: 10 mg/m3 | D18: =TOC!O19 -> 3 | E18: =TOC!N19 -> 0.8583333333 | F18: =TOC!O34 -> 34.2 | G18: =TOC!N34 -> 1.108333333 | N18: Particulates | O18: Daily mean | P18: 5 mg/m3
B19: ½ hourly mean | C19: 20 mg/m3 | D19: =TOC!M19 -> 83.5 | E19: =TOC!L19 -> 0.8583333333 | F19: =TOC!M34 -> 567.6 | G19: =TOC!L34 -> 1.108333333 | N19: Hydrogen chloride | O19: Daily mean | P19: 8 mg/m3
A20: Hydrogen chloride | B20: Daily mean | C20: 10 mg/m3 | D20: =HCl!O19 -> 10.6 | E20: =HCl!N19 -> 5.891666667 | F20: =HCl!O34 -> 9.5 | G20: =HCl!N34 -> 5.483333333 | N20: Sulphur dioxide | O20: Daily mean | P20: 40 mg/m3
B21: ½ hourly mean | C21: 60 mg/m3 | D21: =HCl!M19 -> 54.3 | E21: =HCl!L19 -> 5.891666667 | F21: =HCl!M34 -> 38.3 | G21: =HCl!L34 -> 5.483333333 | N21: Ammonia | O21: Daily mean | P21: 15 mg/m3
A22: Sulphur dioxide | B22: Daily mean | C22: 50 mg/m3 | D22: ='SO2'!O19 -> 32.7 | E22: ='SO2'!N19 -> 11.03333333 | F22: ='SO2'!O34 -> 33.2 | G22: ='SO2'!N34 -> 12.66666667
B23: ½ hourly mean | C23: 200 mg/m3 | D23: ='SO2'!M19 -> 291 | E23: ='SO2'!L19 -> 11.03333333 | F23: ='SO2'!M34 -> 149.4 | G23: ='SO2'!L34 -> 12.66666667
A24: Carbon monoxide | B24: Daily mean | C24: 50 mg/m3 | D24: ='CO 95% 10 min'!Q22 -> 63.1 | E24: ='CO 95% 10 min'!P22 -> 24.38333333 | F24: ='CO 95% 10 min'!Q37 -> 57.5 | G24: ='CO 95% 10 min'!P37 -> 26.06666667
B25: 95%ile 10-min avg * | C25: 150 mg/m3 * | D25: ='CO 95% 10 min'!M22 -> 255.8 | E25: ='CO 95% 10 min'!N22 -> 24.45833333 | F25: ='CO 95% 10 min'!M37 -> 491.6 | G25: ='CO 95% 10 min'!N37 -> 26.10833333
A26: Ammonia | B26: Daily mean | C26: No limit set until 03/12/23 | D26: ='NH3'!$O$19 -> 9 | E26: ='NH3'!$N$19 -> 4.8 | F26: ='NH3'!$O$34 -> 9.4 | G26: ='NH3'!$N$34 -> 6.5
A27: ** = delete as appropriate, depending on whether your plant has half-horly or 10-min CO ELVs
A28: Comments :

Sheet NOx
A1: Annual Performance Report 2023 | H1: LondonEnergy Ltd
A3: Monitoring of Oxides of Nitrogen emissions | D3: Whole Installation | G3: See Notes in Cell Q3 | J3: Monitoring of Oxides of Nitrogen emissions | N3: Per Combustion Line | Q3: Notes:
Q4: User to add logic to complete Whole installation, Table A5:G18. From the data in Per Combustion Line, Table J6:O79, subject to No. of lines installed
A5: mg/Nm3 | B5: 1/2 Hourly Reference Periods | E5: Daily Reference Periods
A6: 2023 | B6: 1/2 hourly NOx ELV | C6: Monthly 1/2 hourly mean | D6: Highest 1/2 hourly maximum | E6: Daily NOx ELV* | F6: Monthly daily mean | G6: Highest daily maximum | J6: 2023 | K6: mg/Nm3 | L6: Monthly 1/2 hourly mean | M6: Monthly 1/2 hourly maximum | N6: Monthly daily mean | O6: Monthly daily maximum
A7: Jan | B7: 400 | C7: =AVERAGE(L7,L22) -> 164.35 | D7: =MAX(M7,M22) -> 223.7 | E7: 200 | F7: =AVERAGE(N7,N22) -> 164.35 | G7: =MAX(O7,O22) -> 184.5 | J7: A1 | K7: Jan | L7: 162.7 | M7: 214.8 | N7: =L7 -> 162.7 | O7: 180.1
A8: Feb | B8: 400 | C8: =AVERAGE(L8,L23) -> 162.55 | D8: =MAX(M8,M23) -> 211.6 | E8: 200 | F8: =AVERAGE(N8,N23) -> 162.55 | G8: =MAX(O8,O23) -> 187.5 | K8: Feb | L8: 170.6 | M8: 211.6 | N8: =L8 -> 170.6 | O8: 187.5
A9: Mar | B9: 400 | C9: 160.65 | D9: 232.3 | E9: 200 | F9: 160.65 | G9: 199.2 | K9: Mar | L9: 167.5 | M9: 232.3 | N9: 167.5 | O9: 199.2 | Q9: Whole Installation table A5:G18:
A10: Apr | B10: 400 | C10: 156.25 | D10: 244 | E10: 200 | F10: 156.25 | G10: 185.7 | K10: Apr | L10: 165.5 | M10: 225 | N10: 165.5 | O10: 185.7 | Q10: Mean: for 1/2 hourly and daily periods calculate mean of values across all operational combustion lines for the month
A11: May | B11: 400 | C11: 161.15 | D11: 239.6 | E11: 200 | F11: 161.15 | G11: 206.2 | K11: May | L11: 172.8 | M11: 239.6 | N11: 172.8 | O11: 206.2
A12: Jun | B12: 400 | C12: 163.75 | D12: 239.9 | E12: 200 | F12: 163.75 | G12: 190.1 | K12: Jun | L12: 169.7 | M12: 239.9 | N12: 169.7 | O12: 190.1
A13: Jul | B13: 400 | C13: 162.7 | D13: 241.4 | E13: 200 | F13: 162.7 | G13: 211.4 | K13: Jul | L13: 160.6 | M13: 241.4 | N13: 160.6 | O13: 211.4 | Q13: Maximum: for 1/2 hourly and daily periods use the highest value across all operational combustion lines for the month
A14: Aug | B14: 400 | C14: 162.75 | D14: 275.1 | E14: 200 | F14: 162.75 | G14: 189.5 | K14: Aug | L14: 156 | M14: 229.3 | N14: 156 | O14: 184.8
A15: Sep | B15: 400 | C15: 161.4 | D15: 254.9 | E15: 200 | F15: 161.4 | G15: 181.3 | K15: Sep | L15: 154.5 | M15: 202.5 | N15: 154.5 | O15: 169.6
A16: Oct | B16: 400 | C16: 153.7 | D16: 312.6 | E16: 200 | F16: 153.7 | G16: 179 | K16: Oct | L16: 149.9 | M16: 206 | N16: 149.9 | O16: 179
A17: Nov | B17: 400 | C17: 149.3 | D17: 207.1 | E17: 200 | F17: 149.3 | G17: 175.8 | K17: Nov | L17: 147.2 | M17: 200.6 | N17: 147.2 | O17: 175.8
A18: Dec | B18: 400 | C18: 153.6 | D18: 219 | E18: 200 | F18: 153.6 | G18: 170.5 | K18: Dec | L18: 151.8 | M18: 198.6 | N18: 151.8 | O18: 170.5
E19: * ELV reduced to 180 mg/Nm3 on 3 December 2023 | K19: Annual | L19: =AVERAGE(L7:L18) -> 160.7333333 | M19: =MAX(M7:M18) -> 241.4 | N19: =AVERAGE(N7:N18) -> 160.7333333 | O19: =MAX(O7:O18) -> 211.4
J21: 2023 | K21: mg/Nm3 | L21: Monthly 1/2 hourly mean | M21: Monthly 1/2 hourly maximum | N21: Monthly daily mean | O21: Monthly daily maximum
J22: A2 | K22: Jan | L22: 166 | M22: 223.7 | N22: =L22 -> 166 | O22: 184.5
K23: Feb | L23: 154.5 | M23: 194.4 | N23: =L23 -> 154.5 | O23: 173.8
K24: Mar | L24: 153.8 | M24: 229.5 | N24: 153.8 | O24: 177.1
K25: Apr | L25: 147 | M25: 244 | N25: 147 | O25: 177.6
K26: May | L26: 149.5 | M26: 199.9 | N26: 149.5 | O26: 175.6
K27: Jun | L27: 157.8 | M27: 226.6 | N27: 157.8 | O27: 186.1
K28: Jul | L28: 164.8 | M28: 236.6 | N28: 164.8 | O28: 192
K29: Aug | L29: 169.5 | M29: 275.1 | N29: 169.5 | O29: 189.5
K30: Sep | L30: 168.3 | M30: 254.9 | N30: 168.3 | O30: 181.3
K31: Oct | L31: 157.5 | M31: 312.6 | N31: 157.5 | O31: 178
K32: Nov | L32: 151.4 | M32: 207.1 | N32: 151.4 | O32: 172.2
K33: Dec | L33: 155.4 | M33: 219 | N33: 155.4 | O33: 168.3
K34: Annual | L34: =AVERAGE(L22:L33) -> 157.9583333 | M34: =MAX(M22:M33) -> 312.6 | N34: =AVERAGE(N22:N33) -> 157.9583333 | O34: =MAX(O22:O33) -> 192
J36: 2023 | K36: mg/Nm3 | L36: Monthly 1/2 hourly mean | M36: Monthly 1/2 hourly maximum | N36: Monthly daily mean | O36: Monthly daily maximum
J37: A3 | K37: Jan
K38: Feb
K39: Mar
K40: Apr
K41: May
K42: Jun
K43: Jul
K44: Aug
K45: Sep
K46: Oct
K47: Nov
A48: Comments : | K48: Dec
K49: Annual | M49: 0 | O49: 0
J51: 2023 | K51: mg/Nm3 | L51: Monthly 1/2 hourly mean | M51: Monthly 1/2 hourly maximum | N51: Monthly daily mean | O51: Monthly daily maximum
J52: A4 | K52: Jan
K53: Feb
K54: Mar
K55: Apr
K56: May
K57: Jun
K58: Jul
K59: Aug
K60: Sep
K61: Oct
K62: Nov
K63: Dec
K64: Annual | M64: 0 | O64: 0
J66: 2023 | K66: mg/Nm3 | L66: Monthly 1/2 hourly mean | M66: Monthly 1/2 hourly maximum | N66: Monthly daily mean | O66: Monthly daily maximum
J67: A5 | K67: Jan
K68: Feb
K69: Mar
K70: Apr
K71: May
K72: Jun
K73: Jul
K74: Aug
K75: Sep
K76: Oct
K77: Nov
K78: Dec
K79: Annual | M79: 0 | O79: 0

Sheet HCl
A1: Annual Performance Report 2023 | E1: LondonEnergy Ltd
A3: Monitoring of Hydrogen Chloride emissions | D3: Whole Installation | G3: See Notes in Cell Q3 | J3: Monitoring of Hydrogen Chloride emissions | N3: Per Combustion Line | Q3: Notes:
Q4: User to add logic to complete Whole installation, Table A5:G18. From the data in Per Combustion Line, Table J6:O79, subject to No. of lines installed
A5: mg/Nm3 | B5: 1/2 Hourly Reference Periods | E5: Daily Reference Periods
A6: 2023 | B6: 1/2 hourly HCl ELV | C6: Monthly 1/2 hourly mean | D6: Highest 1/2 hourly maximum | E6: Daily HCl ELV* | F6: Monthly daily mean | G6: Highest daily maximum | J6: 2023 | K6: mg/Nm3 | L6: Monthly 1/2 hourly mean | M6: Monthly 1/2 hourly maximum | N6: Monthly daily mean | O6: Monthly daily maximum
A7: Jan | B7: 60 | C7: =AVERAGE(L7,L22) -> 5.95 | D7: =MAX(M7,M22) -> 25.6 | E7: 10 | F7: =AVERAGE(N7,N22) -> 5.95 | G7: =MAX(O7,O22) -> 9.2 | J7: A1 | K7: Jan | L7: 6.1 | M7: 25.6 | N7: =L7 -> 6.1 | O7: 8.6
A8: Feb | B8: 60 | C8: =AVERAGE(L8,L23) -> 5.85 | D8: =MAX(M8,M23) -> 54.3 | E8: 10 | F8: =AVERAGE(N8,N23) -> 5.85 | G8: =MAX(O8,O23) -> 9.3 | K8: Feb | L8: 6.1 | M8: 54.3 | N8: =L8 -> 6.1 | O8: 9.3
A9: Mar | B9: 60 | C9: =AVERAGE(L9,L24) -> 5.95 | D9: 38.3 | E9: 10 | F9: =AVERAGE(N9,N24) -> 5.95 | G9: 9.3 | K9: Mar | L9: 6.5 | M9: 29.1 | N9: 6.5 | O9: 9.3 | Q9: Whole Installation table A5:G18:
A10: Apr | B10: 60 | C10: =AVERAGE(L10,L25) -> 6.9 | D10: 48.1 | E10: 10 | F10: =AVERAGE(N10,N25) -> 6.9 | G10: 9.5 | K10: Apr | L10: 7.4 | M10: 48.1 | N10: 7.4 | O10: 9.5 | Q10: Mean: for 1/2 hourly and daily periods calculate mean of values across all operational combustion lines for the month
A11: May | B11: 60 | C11: =AVERAGE(L11,L26) -> 6.1 | D11: 32.9 | E11: 10 | F11: =AVERAGE(N11,N26) -> 6.1 | G11: 9.6 | K11: May | L11: 6.8 | M11: 32.9 | N11: 6.8 | O11: 9.6
A12: Jun | B12: 60 | C12: =AVERAGE(L12,L27) -> 6.55 | D12: 33 | E12: 10 | F12: =AVERAGE(N12,N27) -> 6.55 | G12: 9.5 | K12: Jun | L12: 6.5 | M12: 33 | N12: 6.5 | O12: 8.4
A13: Jul | B13: 60 | C13: =AVERAGE(L13,L28) -> 6.35 | D13: 41.9 | E13: 10 | F13: =AVERAGE(N13,N28) -> 6.35 | G13: 10.6 | K13: Jul | L13: 6.1 | M13: 41.9 | N13: 6.1 | O13: 10.6 | Q13: Maximum: for 1/2 hourly and daily periods use the highest value across all operational combustion lines for the month
A14: Aug | B14: 60 | C14: =AVERAGE(L14,L29) -> 5.7 | D14: 44.6 | E14: 10 | F14: =AVERAGE(N14,N29) -> 5.7 | G14: 8.3 | K14: Aug | L14: 5.4 | M14: 44.6 | N14: 5.4 | O14: 8.3
A15: Sep | B15: 60 | C15: =AVERAGE(L15,L30) -> 5.2 | D15: 17.7 | E15: 10 | F15: =AVERAGE(N15,N30) -> 5.2 | G15: 7.9 | K15: Sep | L15: 5.5 | M15: 17.7 | N15: 5.5 | O15: 7.8
A16: Oct | B16: 60 | C16: =AVERAGE(L16,L31) -> 4.15 | D16: 30.4 | E16: 10 | F16: =AVERAGE(N16,N31) -> 4.15 | G16: 6.7 | K16: Oct | L16: 4 | M16: 30.4 | N16: 4 | O16: 6.1
A17: Nov | B17: 60 | C17: =AVERAGE(L17,L32) -> 3.95 | D17: 21.8 | E17: 10 | F17: =AVERAGE(N17,N32) -> 3.95 | G17: 6.4 | K17: Nov | L17: 4.6 | M17: 15.6 | N17: 4.6 | O17: 6.3
A18: Dec | B18: 60 | C18: =AVERAGE(L18,L33) -> 5.6 | D18: 35.7 | E18: 10 | F18: =AVERAGE(N18,N33) -> 5.6 | G18: 7.5 | K18: Dec | L18: 5.7 | M18: 35.7 | N18: 5.7 | O18: 7.5
E19: * ELV reduced to 8 mg/Nm3 on 3 December 2023 | K19: Annual | L19: =AVERAGE(L7:L18) -> 5.891666667 | M19: =MAX(M7:M18) -> 54.3 | N19: =AVERAGE(N7:N18) -> 5.891666667 | O19: =MAX(O7:O18) -> 10.6
J21: 2023 | K21: mg/Nm3 | L21: Monthly 1/2 hourly mean | M21: Monthly 1/2 hourly maximum | N21: Monthly daily mean | O21: Monthly daily maximum
J22: A2 | K22: Jan | L22: 5.8 | M22: 21.2 | N22: =L22 -> 5.8 | O22: 9.2
K23: Feb | L23: 5.6 | M23: 34.4 | N23: =L23 -> 5.6 | O23: 7.5
K24: Mar | L24: 5.4 | M24: 38.3 | N24: 5.4 | O24: 7.5
K25: Apr | L25: 6.4 | M25: 21.6 | N25: 6.4 | O25: 8.6
K26: May | L26: 5.4 | M26: 32.8 | N26: 5.4 | O26: 8.9
K27: Jun | L27: 6.6 | M27: 25.8 | N27: 6.6 | O27: 9.5
K28: Jul | L28: 6.6 | M28: 15 | N28: 6.6 | O28: 8.5
K29: Aug | L29: 6 | M29: 13.6 | N29: 6 | O29: 7.5
K30: Sep | L30: 4.9 | M30: 14.9 | N30: 4.9 | O30: 7.9
K31: Oct | L31: 4.3 | M31: 17.8 | N31: 4.3 | O31: 6.7
K32: Nov | L32: 3.3 | M32: 21.8 | N32: 3.3 | O32: 6.4
K33: Dec | L33: 5.5 | M33: 32.4 | N33: 5.5 | O33: 7
K34: Annual | L34: =AVERAGE(L22:L33) -> 5.483333333 | M34: =MAX(M22:M33) -> 38.3 | N34: =AVERAGE(N22:N33) -> 5.483333333 | O34: =MAX(O22:O33) -> 9.5
J36: 2023 | K36: mg/Nm3 | L36: Monthly 1/2 hourly mean | M36: Monthly 1/2 hourly maximum | N36: Monthly daily mean | O36: Monthly daily maximum
J37: A3 | K37: Jan
K38: Feb
K39: Mar
K40: Apr
K41: May
K42: Jun
K43: Jul
K44: Aug
K45: Sep
K46: Oct
K47: Nov
A48: Comments : | K48: Dec
K49: Annual | M49: 0 | O49: 0
J51: 2023 | K51: mg/Nm3 | L51: Monthly 1/2 hourly mean | M51: Monthly 1/2 hourly maximum | N51: Monthly daily mean | O51: Monthly daily maximum
J52: A4 | K52: Jan
K53: Feb
K54: Mar
K55: Apr
K56: May
K57: Jun
K58: Jul
K59: Aug
K60: Sep
K61: Oct
K62: Nov
K63: Dec
K64: Annual | M64: 0 | O64: 0
J66: 2023 | K66: mg/Nm3 | L66: Monthly 1/2 hourly mean | M66: Monthly 1/2 hourly maximum | N66: Monthly daily mean | O66: Monthly daily maximum
J67: A5 | K67: Jan
K68: Feb
K69: Mar
K70: Apr
K71: May
K72: Jun
K73: Jul
K74: Aug
K75: Sep
K76: Oct
K77: Nov
K78: Dec
K79: Annual | M79: 0 | O79: 0

Sheet SO2
A1: Annual Performance Report 2023 | E1: LondonEnergy Ltd
A3: Monitoring of Sulphur dioxide emissions | D3: Whole Installation | G3: See Notes in Cell Q3 | J3: Monitoring of Sulphur dioxide emissions | N3: Per Combustion Line | Q3: Notes:
Q4: User to add logic to complete Whole installation, Table A5:G18. From the data in Per Combustion Line, Table J6:O79, subject to No. of lines installed
A5: mg/Nm3 | B5: 1/2 Hourly Reference Periods | E5: Daily Reference Periods
A6: 2023 | B6: 1/2 hourly SO2 ELV | C6: Monthly 1/2 hourly mean | D6: Highest 1/2 hourly maximum | E6: Daily SO2 ELV* | F6: Monthly daily mean | G6: Highest daily maximum | J6: 2023 | K6: mg/Nm3 | L6: Monthly 1/2 hourly mean | M6: Monthly 1/2 hourly maximum | N6: Monthly daily mean | O6: Monthly daily maximum
A7: Jan | B7: 200 | C7: =AVERAGE(L7,L22) -> 13.95 | D7: =MAX(M7,M22) -> 64.4 | E7: 50 | F7: =AVERAGE(N7,N22) -> 13.95 | G7: =MAX(O7,O22) -> 29.6 | J7: A1 | K7: Jan | L7: 10.1 | M7: 43.9 | N7: =L7 -> 10.1 | O7: 18.3
A8: Feb | B8: 200 | C8: =AVERAGE(L8,L23) -> 17.3 | D8: =MAX(M8,M23) -> 161.3 | E8: 50 | F8: =AVERAGE(N8,N23) -> 17.3 | G8: =MAX(O8,O23) -> 33.2 | K8: Feb | L8: 16.3 | M8: 161.3 | N8: =L8 -> 16.3 | O8: 32.7
A9: Mar | B9: 200 | C9: =AVERAGE(L9,L24) -> 14 | D9: 124.9 | E9: 50 | F9: =AVERAGE(N9,N24) -> 14 | G9: 23.1 | K9: Mar | L9: 15 | M9: 124.9 | N9: 15 | O9: 23.1 | Q9: Whole Installation table A5:G18:
A10: Apr | B10: 200 | C10: =AVERAGE(L10,L25) -> 15.4 | D10: 91.9 | E10: 50 | F10: =AVERAGE(N10,N25) -> 15.4 | G10: 31.9 | K10: Apr | L10: 13.9 | M10: 65.6 | N10: 13.9 | O10: 24 | Q10: Mean: for 1/2 hourly and daily periods calculate mean of values across all operational combustion lines for the month
A11: May | B11: 200 | C11: =AVERAGE(L11,L26) -> 13.7 | D11: 291 | E11: 50 | F11: =AVERAGE(N11,N26) -> 13.7 | G11: 23.5 | K11: May | L11: 13.6 | M11: 291 | N11: 13.6 | O11: 23.5
A12: Jun | B12: 200 | C12: =AVERAGE(L12,L27) -> 14.35 | D12: 116.7 | E12: 50 | F12: =AVERAGE(N12,N27) -> 14.35 | G12: 25.3 | K12: Jun | L12: 13 | M12: 87.5 | N12: 13 | O12: 20.2
A13: Jul | B13: 200 | C13: =AVERAGE(L13,L28) -> 11.15 | D13: 32.7 | E13: 50 | F13: =AVERAGE(N13,N28) -> 11.15 | G13: 17.6 | K13: Jul | L13: 10.6 | M13: 30.6 | N13: 10.6 | O13: 17.6 | Q13: Maximum: for 1/2 hourly and daily periods use the highest value across all operational combustion lines for the month
A14: Aug | B14: 200 | C14: =AVERAGE(L14,L29) -> 10.3 | D14: 38.2 | E14: 50 | F14: =AVERAGE(N14,N29) -> 10.3 | G14: 17.8 | K14: Aug | L14: 8.7 | M14: 38.1 | N14: 8.7 | O14: 13.4
A15: Sep | B15: 200 | C15: =AVERAGE(L15,L30) -> 8.3 | D15: 33.7 | E15: 50 | F15: =AVERAGE(N15,N30) -> 8.3 | G15: 16.2 | K15: Sep | L15: 8.2 | M15: 32 | N15: 8.2 | O15: 13.5
A16: Oct | B16: 200 | C16: =AVERAGE(L16,L31) -> 7.35 | D16: 30.6 | E16: 50 | F16: =AVERAGE(N16,N31) -> 7.35 | G16: 14.4 | K16: Oct | L16: 7.2 | M16: 30.6 | N16: 7.2 | O16: 14.1
A17: Nov | B17: 200 | C17: =AVERAGE(L17,L32) -> 5.75 | D17: 36.9 | E17: 50 | F17: =AVERAGE(N17,N32) -> 5.75 | G17: 13.3 | K17: Nov | L17: 5.6 | M17: 21.4 | N17: 5.6 | O17: 10.9
A18: Dec | B18: 200 | C18: =AVERAGE(L18,L33) -> 10.65 | D18: 159 | E18: 50 | F18: =AVERAGE(N18,N33) -> 10.65 | G18: 27.1 | K18: Dec | L18: 10.2 | M18: 159 | N18: 10.2 | O18: 27.1
E19: * ELV reduced to 40 mg/Nm3 on 3 December 2023 | K19: Annual | L19: =AVERAGE(L7:L18) -> 11.03333333 | M19: =MAX(M7:M18) -> 291 | N19: =AVERAGE(N7:N18) -> 11.03333333 | O19: =MAX(O7:O18) -> 32.7
J21: 2023 | K21: mg/Nm3 | L21: Monthly 1/2 hourly mean | M21: Monthly 1/2 hourly maximum | N21: Monthly daily mean | O21: Monthly daily maximum
J22: A2 | K22: Jan | L22: 17.8 | M22: 64.4 | N22: =L22 -> 17.8 | O22: 29.6
K23: Feb | L23: 18.3 | M23: 94.1 | N23: =L23 -> 18.3 | O23: 33.2
K24: Mar | L24: 13 | M24: 106.2 | N24: 13 | O24: 20.1
K25: Apr | L25: 16.9 | M25: 91.9 | N25: 16.9 | O25: 31.9
K26: May | L26: 13.8 | M26: 149.4 | N26: 13.8 | O26: 22
K27: Jun | L27: 15.7 | M27: 116.7 | N27: 15.7 | O27: 25.3
K28: Jul | L28: 11.7 | M28: 32.7 | N28: 11.7 | O28: 15
K29: Aug | L29: 11.9 | M29: 38.2 | N29: 11.9 | O29: 17.8
K30: Sep | L30: 8.4 | M30: 33.7 | N30: 8.4 | O30: 16.2
K31: Oct | L31: 7.5 | M31: 28.2 | N31: 7.5 | O31: 14.4
K32: Nov | L32: 5.9 | M32: 36.9 | N32: 5.9 | O32: 13.3
K33: Dec | L33: 11.1 | M33: 107.4 | N33: 11.1 | O33: 22.9
K34: Annual | L34: =AVERAGE(L22:L33) -> 12.66666667 | M34: =MAX(M22:M33) -> 149.4 | N34: =AVERAGE(N22:N33) -> 12.66666667 | O34: =MAX(O22:O33) -> 33.2
J36: 2023 | K36: mg/Nm3 | L36: Monthly 1/2 hourly mean | M36: Monthly 1/2 hourly maximum | N36: Monthly daily mean | O36: Monthly daily maximum
J37: A3 | K37: Jan
K38: Feb
K39: Mar
K40: Apr
K41: May
K42: Jun
K43: Jul
K44: Aug
K45: Sep
K46: Oct
K47: Nov
A48: Comments : | K48: Dec
K49: Annual | M49: 0 | O49: 0
J51: 2023 | K51: mg/Nm3 | L51: Monthly 1/2 hourly mean | M51: Monthly 1/2 hourly maximum | N51: Monthly daily mean | O51: Monthly daily maximum
J52: A4 | K52: Jan
K53: Feb
K54: Mar
K55: Apr
K56: May
K57: Jun
K58: Jul
K59: Aug
K60: Sep
K61: Oct
K62: Nov
K63: Dec
K64: Annual | M64: 0 | O64: 0
J66: 2023 | K66: mg/Nm3 | L66: Monthly 1/2 hourly mean | M66: Monthly 1/2 hourly maximum | N66: Monthly daily mean | O66: Monthly daily maximum
J67: A5 | K67: Jan
K68: Feb
K69: Mar
K70: Apr
K71: May
K72: Jun
K73: Jul
K74: Aug
K75: Sep
K76: Oct
K77: Nov
K78: Dec
K79: Annual | M79: 0 | O79: 0

Sheet NH3
A1: Annual Performance Report 2023 | E1: LondonEnergy Ltd
A3: Monitoring of Ammnonia emissions | D3: Whole Installation | G3: See Notes in Cell Q3 | J3: Monitoring of Ammnonia emissions | N3: Per Combustion Line | Q3: Notes:
Q4: User to add logic to complete Whole installation, Table A5:G18. From the data in Per Combustion Line, Table J6:O79, subject to No. of lines installed
A5: mg/Nm3 | B5: 1/2 Hourly Reference Periods | E5: Daily Reference Periods
A6: 2023 | B6: 1/2 hourly NH3 ELV | C6: Monthly 1/2 hourly mean | D6: Highest 1/2 hourly maximum | E6: Daily NH3 ELV* | F6: Monthly daily mean | G6: Highest daily maximum | J6: 2023 | K6: mg/Nm3 | L6: Monthly 1/2 hourly mean | M6: Monthly 1/2 hourly maximum | N6: Monthly daily mean | O6: Monthly daily maximum
A7: Jan | B7: None | C7: - | D7: - | E7: None | F7: - | G7: - | J7: A1 | K7: Jan | L7: - | M7: - | N7: - | O7: -
A8: Feb | B8: None | C8: - | D8: - | E8: None | F8: - | G8: - | K8: Feb | L8: - | M8: - | N8: - | O8: -
A9: Mar | B9: None | C9: - | D9: - | E9: None | F9: - | G9: - | K9: Mar | L9: - | M9: - | N9: - | O9: - | Q9: Whole Installation table A5:G18:
A10: Apr | B10: None | C10: - | D10: - | E10: None | F10: - | G10: - | K10: Apr | L10: - | M10: - | N10: - | O10: - | Q10: Mean: for 1/2 hourly and daily periods calculate mean of values across all operational combustion lines for the month
A11: May | B11: None | C11: - | D11: - | E11: None | F11: - | G11: - | K11: May | L11: - | M11: - | N11: - | O11: -
A12: Jun | B12: None | C12: - | D12: - | E12: None | F12: - | G12: - | K12: Jun | L12: - | M12: - | N12: - | O12: -
A13: Jul | B13: None | C13: - | D13: - | E13: None | F13: - | G13: - | K13: Jul | L13: - | M13: - | N13: - | O13: - | Q13: Maximum: for 1/2 hourly and daily periods use the highest value across all operational combustion lines for the month
A14: Aug | B14: None | C14: - | D14: - | E14: None | F14: - | G14: - | K14: Aug | L14: - | M14: - | N14: - | O14: -
A15: Sep | B15: None | C15: - | D15: - | E15: None | F15: - | G15: - | K15: Sep | L15: - | M15: - | N15: - | O15: -
A16: Oct | B16: None | C16: - | D16: - | E16: None | F16: - | G16: - | K16: Oct | L16: - | M16: - | N16: - | O16: -
A17: Nov | B17: None | C17: - | D17: - | E17: None | F17: - | G17: - | K17: Nov | L17: - | M17: - | N17: - | O17: -
A18: Dec | B18: None | C18: =AVERAGE(L18,L33) -> 5.65 | D18: =MAX(M18,M33) -> 25.3 | E18: 15 | F18: =AVERAGE(N18,N33) -> 5.65 | G18: =MAX(O18,O33) -> 9.4 | K18: Dec | L18: 4.8 | M18: 22.5 | N18: =L18 -> 4.8 | O18: 9
E19: * ELV came into force on 3 December 2023 | K19: Annual | L19: =AVERAGE(L7:L18) -> 4.8 | M19: =MAX(M7:M18) -> 22.5 | N19: =AVERAGE(N7:N18) -> 4.8 | O19: =MAX(O7:O18) -> 9
J21: 2023 | K21: mg/Nm3 | L21: Monthly 1/2 hourly mean | M21: Monthly 1/2 hourly maximum | N21: Monthly daily mean | O21: Monthly daily maximum
J22: A2 | K22: Jan | L22: - | M22: - | N22: - | O22: -
K23: Feb | L23: - | M23: - | N23: - | O23: -
K24: Mar | L24: - | M24: - | N24: - | O24: -
K25: Apr | L25: - | M25: - | N25: - | O25: -
K26: May | L26: - | M26: - | N26: - | O26: -
K27: Jun | L27: - | M27: - | N27: - | O27: -
K28: Jul | L28: - | M28: - | N28: - | O28: -
K29: Aug | L29: - | M29: - | N29: - | O29: -
K30: Sep | L30: - | M30: - | N30: - | O30: -
K31: Oct | L31: - | M31: - | N31: - | O31: -
K32: Nov | L32: - | M32: - | N32: - | O32: -
K33: Dec | L33: 6.5 | M33: 25.3 | N33: =L33 -> 6.5 | O33: 9.4
K34: Annual | L34: =AVERAGE(L22:L33) -> 6.5 | M34: =MAX(M22:M33) -> 25.3 | N34: =AVERAGE(N22:N33) -> 6.5 | O34: =MAX(O22:O33) -> 9.4
J36: 2023 | K36: mg/Nm3 | L36: Monthly 1/2 hourly mean | M36: Monthly 1/2 hourly maximum | N36: Monthly daily mean | O36: Monthly daily maximum
J37: A3 | K37: Jan
K38: Feb
K39: Mar
K40: Apr
K41: May
K42: Jun
K43: Jul
K44: Aug
K45: Sep
K46: Oct
K47: Nov
A48: Comments : | K48: Dec
A49: An indicated ELV value of zero in the table above means that no ammonia limit is/was set in the permit. | K49: Annual | M49: 0 | O49: 0
J51: 2023 | K51: mg/Nm3 | L51: Monthly 1/2 hourly mean | M51: Monthly 1/2 hourly maximum | N51: Monthly daily mean | O51: Monthly daily maximum
J52: A4 | K52: Jan
K53: Feb
K54: Mar
K55: Apr
K56: May
K57: Jun
K58: Jul
K59: Aug
K60: Sep
K61: Oct
K62: Nov
K63: Dec
K64: Annual | M64: 0 | O64: 0
J66: 2023 | K66: mg/Nm3 | L66: Monthly 1/2 hourly mean | M66: Monthly 1/2 hourly maximum | N66: Monthly daily mean | O66: Monthly daily maximum
J67: A5 | K67: Jan
K68: Feb
K69: Mar
K70: Apr
K71: May
K72: Jun
K73: Jul
K74: Aug
K75: Sep
K76: Oct
K77: Nov
K78: Dec
K79: Annual | M79: 0 | O79: 0

Sheet TOC
A1: Annual Performance Report 2023 | E1: LondonEnergy Ltd
A3: Monitoring of Total organic carbon emissions | D3: Whole Installation | G3: See Notes in Cell Q3 | J3: Monitoring of Total organic carbon emissions | N3: Per Combustion Line | Q3: Notes:
Q4: User to add logic to complete Whole installation, Table A5:G18. From the data in Per Combustion Line, Table J6:O79, subject to No. of lines installed
A5: mg/Nm3 | B5: 1/2 Hourly Reference Periods | E5: Daily Reference Periods
A6: 2023 | B6: 1/2 hourly TOC ELV | C6: Monthly 1/2 hourly mean | D6: Highest 1/2 hourly maximum | E6: Daily TOC ELV | F6: Monthly daily mean | G6: Highest daily maximum | J6: 2023 | K6: mg/Nm3 | L6: Monthly 1/2 hourly mean | M6: Monthly 1/2 hourly maximum | N6: Monthly daily mean | O6: Monthly daily maximum
A7: Jan | B7: 20 | C7: =AVERAGE(L7,L22) -> 0.9 | D7: =MAX(M7,M22) -> 83.5 | E7: 10 | F7: =AVERAGE(N7,N22) -> 0.9 | G7: =MAX(O7,O22) -> 3 | J7: A1 | K7: Jan | L7: 0.7 | M7: 83.5 | N7: =L7 -> 0.7 | O7: 3
A8: Feb | B8: 20 | C8: =AVERAGE(L8,L23) -> 0.75 | D8: =MAX(M8,M23) -> 16.3 | E8: 10 | F8: =AVERAGE(N8,N23) -> 0.75 | G8: =MAX(O8,O23) -> 2.4 | K8: Feb | L8: 0.5 | M8: 9.8 | N8: =L8 -> 0.5 | O8: 0.9
A9: Mar | B9: 20 | C9: 0.9 | D9: 43.2 | E9: 10 | F9: 0.9 | G9: 4.2 | K9: Mar | L9: 0.7 | M9: 15.3 | N9: 0.7 | O9: 1.5 | Q9: Whole Installation table A5:G18:
A10: Apr | B10: 20 | C10: 1 | D10: 37.8 | E10: 10 | F10: 1 | G10: 2.2 | K10: Apr | L10: 0.9 | M10: 37.8 | N10: 0.9 | O10: 2 | Q10: Mean: for 1/2 hourly and daily periods calculate mean of values across all operational combustion lines for the month
A11: May | B11: 20 | C11: 1.15 | D11: 25 | E11: 10 | F11: 1.15 | G11: 2.6 | K11: May | L11: 1 | M11: 16 | N11: 1 | O11: 1.9
A12: Jun | B12: 20 | C12: 1 | D12: 69.2 | E12: 10 | F12: 1 | G12: 2.8 | K12: Jun | L12: 0.9 | M12: 12.6 | N12: 0.9 | O12: 2
A13: Jul | B13: 20 | C13: 0.9 | D13: 30.9 | E13: 10 | F13: 0.9 | G13: 2.2 | K13: Jul | L13: 1 | M13: 19.5 | N13: 1 | O13: 1.7 | Q13: Maximum: for 1/2 hourly and daily periods use the highest value across all operational combustion lines for the month
A14: Aug | B14: 20 | C14: 1.05 | D14: 22.5 | E14: 10 | F14: 1.05 | G14: 2.8 | K14: Aug | L14: 1 | M14: 22.5 | N14: 1 | O14: 1.8
A15: Sep | B15: 20 | C15: 1.05 | D15: 22.7 | E15: 10 | F15: 1.05 | G15: 3.2 | K15: Sep | L15: 1.1 | M15: 21.1 | N15: 1.1 | O15: 2.5
A16: Oct | B16: 20 | C16: 1.5 | D16: 567.6 | E16: 10 | F16: 1.5 | G16: 34.2 | K16: Oct | L16: 0.9 | M16: 12.6 | N16: 0.9 | O16: 2.1
A17: Nov | B17: 20 | C17: 0.85 | D17: 15.7 | E17: 10 | F17: 0.85 | G17: 2.1 | K17: Nov | L17: 0.8 | M17: 13.7 | N17: 0.8 | O17: 1.4
A18: Dec | B18: 20 | C18: 0.75 | D18: 27.8 | E18: 10 | F18: 0.75 | G18: 2 | K18: Dec | L18: 0.8 | M18: 27.8 | N18: 0.8 | O18: 2
K19: Annual | L19: =AVERAGE(L7:L18) -> 0.8583333333 | M19: =MAX(M7:M18) -> 83.5 | N19: =AVERAGE(N7:N18) -> 0.8583333333 | O19: =MAX(O7:O18) -> 3
J21: 2023 | K21: mg/Nm3 | L21: Monthly 1/2 hourly mean | M21: Monthly 1/2 hourly maximum | N21: Monthly daily mean | O21: Monthly daily maximum
J22: A2 | K22: Jan | L22: 1.1 | M22: 13.2 | N22: =L22 -> 1.1 | O22: 2.6
K23: Feb | L23: 1 | M23: 16.3 | N23: =L23 -> 1 | O23: 2.4
K24: Mar | L24: 1.1 | M24: 43.2 | N24: 1.1 | O24: 4.2
K25: Apr | L25: 1.1 | M25: 15.6 | N25: 1.1 | O25: 2.2
K26: May | L26: 1.3 | M26: 25 | N26: 1.3 | O26: 2.6
K27: Jun | L27: 1.1 | M27: 69.2 | N27: 1.1 | O27: 2.8
K28: Jul | L28: 0.8 | M28: 30.9 | N28: 0.8 | O28: 2.2
K29: Aug | L29: 1.1 | M29: 16.4 | N29: 1.1 | O29: 2.8
K30: Sep | L30: 1 | M30: 22.7 | N30: 1 | O30: 3.2
K31: Oct | L31: 2.1 | M31: 567.6 | N31: 2.1 | O31: 34.2
K32: Nov | L32: 0.9 | M32: 15.7 | N32: 0.9 | O32: 2.1
K33: Dec | L33: 0.7 | M33: 15.8 | N33: 0.7 | O33: 1.2
K34: Annual | L34: =AVERAGE(L22:L33) -> 1.108333333 | M34: =MAX(M22:M33) -> 567.6 | N34: =AVERAGE(N22:N33) -> 1.108333333 | O34: =MAX(O22:O33) -> 34.2
J36: 2023 | K36: mg/Nm3 | L36: Monthly 1/2 hourly mean | M36: Monthly 1/2 hourly maximum | N36: Monthly daily mean | O36: Monthly daily maximum
J37: A3 | K37: Jan
K38: Feb
K39: Mar
K40: Apr
K41: May
K42: Jun
K43: Jul
K44: Aug
K45: Sep
K46: Oct
K47: Nov
A48: Comments : | K48: Dec
K49: Annual | M49: 0 | O49: 0
J51: 2023 | K51: mg/Nm3 | L51: Monthly 1/2 hourly mean | M51: Monthly 1/2 hourly maximum | N51: Monthly daily mean | O51: Monthly daily maximum
J52: A4 | K52: Jan
K53: Feb
K54: Mar
K55: Apr
K56: May
K57: Jun
K58: Jul
K59: Aug
K60: Sep
K61: Oct
K62: Nov
K63: Dec
K64: Annual | M64: 0 | O64: 0
J66: 2023 | K66: mg/Nm3 | L66: Monthly 1/2 hourly mean | M66: Monthly 1/2 hourly maximum | N66: Monthly daily mean | O66: Monthly daily maximum
J67: A5 | K67: Jan
K68: Feb
K69: Mar
K70: Apr
K71: May
K72: Jun
K73: Jul
K74: Aug
K75: Sep
K76: Oct
K77: Nov
K78: Dec
K79: Annual | M79: 0 | O79: 0

Sheet Particulates
A1: Annual Performance Report 2023 | E1: LondonEnergy Ltd
A3: Monitoring of Particulate matter emissions | D3: Whole Installation | G3: See Notes in Cell Q3 | J3: Monitoring of Particulate matter emissions | N3: Per Combustion Line | Q3: Notes:
Q4: User to add logic to complete Whole installation, Table A5:G18. From the data in Per Combustion Line, Table J6:O79, subject to No. of lines installed
A5: mg/Nm3 | B5: 1/2 Hourly Reference Periods | E5: Daily Reference Periods
A6: 2023 | B6: 1/2 hourly PM ELV | C6: Monthly 1/2 hourly mean | D6: Highest 1/2 hourly maximum | E6: Daily PM ELV* | F6: Monthly daily mean | G6: Highest daily maximum | J6: 2023 | K6: mg/Nm3 | L6: Monthly 1/2 hourly mean | M6: Monthly 1/2 hourly maximum | N6: Monthly daily mean | O6: Monthly daily maximum
A7: Jan | B7: 30 | C7: =AVERAGE(L7,L22) -> 2.5 | D7: =MAX(M7,M22) -> 7.8 | E7: 10 | F7: =AVERAGE(N7,N22) -> 2.5 | G7: =MAX(O7,O22) -> 3.3 | J7: A1 | K7: Jan | L7: 2.6 | M7: 7.8 | N7: =L7 -> 2.6 | O7: 3.3
A8: Feb | B8: 30 | C8: =AVERAGE(L8,L23) -> 2.6 | D8: =MAX(M8,M23) -> 6.3 | E8: 10 | F8: =AVERAGE(N8,N23) -> 2.6 | G8: =MAX(O8,O23) -> 3.5 | K8: Feb | L8: 2.7 | M8: 6.3 | N8: =L8 -> 2.7 | O8: 3.5
A9: Mar | B9: 30 | C9: 2.8 | D9: 8.8 | E9: 10 | F9: 2.8 | G9: 5 | K9: Mar | L9: 2.6 | M9: 8.8 | N9: 2.6 | O9: 3.7 | Q9: Whole Installation table A5:G18:
A10: Apr | B10: 30 | C10: 3.65 | D10: 17.2 | E10: 10 | F10: 3.65 | G10: 6 | K10: Apr | L10: 3.1 | M10: 9.9 | N10: 3.1 | O10: 6 | Q10: Mean: for 1/2 hourly and daily periods calculate mean of values across all operational combustion lines for the month
A11: May | B11: 30 | C11: 3.25 | D11: 23.7 | E11: 10 | F11: 3.25 | G11: 6.3 | K11: May | L11: 3.1 | M11: 20.9 | N11: 3.1 | O11: 5
A12: Jun | B12: 30 | C12: 1.65 | D12: 86.5 | E12: 10 | F12: 1.65 | G12: 3.6 | K12: Jun | L12: 2.1 | M12: 13.9 | N12: 2.1 | O12: 3.6
A13: Jul | B13: 30 | C13: 1.3 | D13: 18.2 | E13: 10 | F13: 1.3 | G13: 2.7 | K13: Jul | L13: 1.7 | M13: 18.2 | N13: 1.7 | O13: 2.7 | Q13: Maximum: for 1/2 hourly and daily periods use the highest value across all operational combustion lines for the month
A14: Aug | B14: 30 | C14: 1.35 | D14: 40 | E14: 10 | F14: 1.35 | G14: 3.1 | K14: Aug | L14: 1.7 | M14: 17.7 | N14: 1.7 | O14: 3.1
A15: Sep | B15: 30 | C15: 1.5 | D15: 8.4 | E15: 10 | F15: 1.5 | G15: 2.4 | K15: Sep | L15: 1.8 | M15: 8.4 | N15: 1.8 | O15: 2.4
A16: Oct | B16: 30 | C16: 1.15 | D16: 8.5 | E16: 10 | F16: 1.15 | G16: 2.8 | K16: Oct | L16: 1.2 | M16: 5.1 | N16: 1.2 | O16: 1.7
A17: Nov | B17: 30 | C17: 1.1 | D17: 8.6 | E17: 10 | F17: 1.1 | G17: 1.6 | K17: Nov | L17: 1.3 | M17: 8.5 | N17: 1.3 | O17: 1.6
A18: Dec | B18: 30 | C18: 1.25 | D18: 16.6 | E18: 10 | F18: 1.25 | G18: 2.3 | K18: Dec | L18: 1.6 | M18: 16.6 | N18: 1.6 | O18: 2.3
E19: * ELV reduced to 5 mg/Nm3 on 3 December 2023 | K19: Annual | L19: =AVERAGE(L7:L18) -> 2.125 | M19: =MAX(M7:M18) -> 20.9 | N19: =AVERAGE(N7:N18) -> 2.125 | O19: =MAX(O7:O18) -> 6
J21: 2023 | K21: mg/Nm3 | L21: Monthly 1/2 hourly mean | M21: Monthly 1/2 hourly maximum | N21: Monthly daily mean | O21: Monthly daily maximum
J22: A2 | K22: Jan | L22: 2.4 | M22: 5.1 | N22: =L22 -> 2.4 | O22: 2.8
K23: Feb | L23: 2.5 | M23: 5.4 | N23: =L23 -> 2.5 | O23: 3.2
K24: Mar | L24: 3 | M24: 7.2 | N24: 3 | O24: 5
K25: Apr | L25: 4.2 | M25: 17.2 | N25: 4.2 | O25: 5.3
K26: May | L26: 3.4 | M26: 23.7 | N26: 3.4 | O26: 6.3
K27: Jun | L27: 1.2 | M27: 86.5 | N27: 1.2 | O27: 3.5
K28: Jul | L28: 0.9 | M28: 11.6 | N28: 0.9 | O28: 2.4
K29: Aug | L29: 1 | M29: 40 | N29: 1 | O29: 2.6
K30: Sep | L30: 1.2 | M30: 7.6 | N30: 1.2 | O30: 2.1
K31: Oct | L31: 1.1 | M31: 8.5 | N31: 1.1 | O31: 2.8
K32: Nov | L32: 0.9 | M32: 8.6 | N32: 0.9 | O32: 1.3
K33: Dec | L33: 0.9 | M33: 3.5 | N33: 0.9 | O33: 1
K34: Annual | L34: =AVERAGE(L22:L33) -> 1.891666667 | M34: =MAX(M22:M33) -> 86.5 | N34: =AVERAGE(N22:N33) -> 1.891666667 | O34: =MAX(O22:O33) -> 6.3
J36: 2023 | K36: mg/Nm3 | L36: Monthly 1/2 hourly mean | M36: Monthly 1/2 hourly maximum | N36: Monthly daily mean | O36: Monthly daily maximum
J37: A3 | K37: Jan
K38: Feb
K39: Mar
K40: Apr
K41: May
K42: Jun
K43: Jul
K44: Aug
K45: Sep
K46: Oct
K47: Nov
A48: Comments : | K48: Dec
K49: Annual | M49: 0 | O49: 0
J51: 2023 | K51: mg/Nm3 | L51: Monthly 1/2 hourly mean | M51: Monthly 1/2 hourly maximum | N51: Monthly daily mean | O51: Monthly daily maximum
J52: A4 | K52: Jan
K53: Feb
K54: Mar
K55: Apr
K56: May
K57: Jun
K58: Jul
K59: Aug
K60: Sep
K61: Oct
K62: Nov
K63: Dec
K64: Annual | M64: 0 | O64: 0
J66: 2023 | K66: mg/Nm3 | L66: Monthly 1/2 hourly mean | M66: Monthly 1/2 hourly maximum | N66: Monthly daily mean | O66: Monthly daily maximum
J67: A5 | K67: Jan
K68: Feb
K69: Mar
K70: Apr
K71: May
K72: Jun
K73: Jul
K74: Aug
K75: Sep
K76: Oct
K77: Nov
K78: Dec
K79: Annual | M79: 0 | O79: 0

Sheet CO 95% 10 min
A1: Annual Performance Report 2023 | E1: LondonEnergy Ltd
A3: Monitoring of Carbon Monoxide (10-minute avg) | E3: Whole Installation | H3: See Notes in Cell S3 | J3: Monitoring of Carbon Monoxide (10-minute avg) | O3: Per Combustion Line | Q3: Notes: | S3: Notes:
A5: Please complete this tab for your plant if you have 10-minute average CO ELVs; otherwise, leave it blank and complete the CO 0.5 hourly tab
S7: User to add logic to complete Whole installation, Table A5:H18. From the data in Per Combustion Line, Table K6:Q79, subject to No. of lines installed
A8: mg/Nm3 | B8: 10-minute Reference Periods | F8: Daily Reference Periods
A9: 2023 | B9: 95%ile 10-min avg CO ELV | C9: 95%ile 10-min avg maximum | D9: Monthly CO 10-min avg mean | E9: 10-min avg maximum | F9: Daily CO ELV | G9: Monthly daily mean | H9: Highest daily maximum | K9: 2023 | L9: mg/Nm3 | M9: 95%ile 10-min avg maximum | N9: Monthly CO 10-min avg mean | O9: 10-min avg maximum | P9: Monthly daily mean | Q9: Monthly daily maximum
A10: Jan | B10: 150 | C10: =MAX(M10,M25) -> 122.3 | D10: =AVERAGE(M10,M25) -> 118.15 | E10: =MAX(N10,N25) -> 29.4 | F10: 50 | G10: =AVERAGE(O10,O25) -> 814.8 | H10: =MAX(P10,P25) -> 29.4 | K10: A1 | L10: Jan | M10: 122.3 | N10: 27 | O10: 814.8 | P10: 27 | Q10: 45.8
A11: Feb | B11: 150 | C11: =MAX(M11,M26) -> 97.8 | D11: =AVERAGE(M11,M26) -> 97.45 | E11: =MAX(N11,N26) -> 28.7 | F11: 50 | G11: =AVERAGE(O11,O26) -> 666.35 | H11: =MAX(P11,P26) -> 28.7 | L11: Feb | M11: 97.8 | N11: 28.7 | O11: 856.8 | P11: 28.7 | Q11: 41.6
A12: Mar | B12: 150 | C12: 159.2 | D12: 151.15 | E12: 28.5 | F12: 50 | G12: 797.6 | H12: 28.5 | L12: Mar | M12: 143.1 | N12: 26.5 | O12: 822.5 | P12: 26.4 | Q12: 63.1 | S12: Whole Installation table A5:H18:
A13: Apr | B13: 150 | C13: 135.3 | D13: 121.2 | E13: 26 | F13: 50 | G13: 410.85 | H13: 26 | L13: Apr | M13: 107.1 | N13: 25.4 | O13: 460.5 | P13: 25.4 | Q13: 38.8 | S13: Mean: for 10-min and daily periods use average of all operational combustion lines.
A14: May | B14: 150 | C14: 129.9 | D14: 128.45 | E14: 26.9 | F14: 50 | G14: 603.1 | H14: 26.9 | L14: May | M14: 129.9 | N14: 26.9 | O14: 460.2 | P14: 26.9 | Q14: 46
A15: Jun | B15: 150 | C15: 139.6 | D15: 107.95 | E15: 22.5 | F15: 50 | G15: 650.2 | H15: 22.4 | L15: Jun | M15: 76.3 | N15: 18.9 | O15: 257.9 | P15: 18.2 | Q15: 31.3
A16: Jul | B16: 150 | C16: 255.8 | D16: 248.6 | E16: 20.2 | F16: 50 | G16: 1346.05 | H16: 20.2 | L16: Jul | M16: 255.8 | N16: 17.8 | O16: 1149.8 | P16: 17.9 | Q16: 55.6 | S16: Maximum: for 10-min and daily periods use the highest of all operational combustion lines in any month.
A17: Aug | B17: 150 | C17: 133.5 | D17: 131.85 | E17: 21.7 | F17: 50 | G17: 571.45 | H17: 21.7 | L17: Aug | M17: 130.2 | N17: 20.2 | O17: 490.1 | P17: 20.2 | Q17: 31.9
A18: Sep | B18: 150 | C18: 116.2 | D18: 107.45 | E18: 22.4 | F18: 50 | G18: 808.45 | H18: 22.3 | L18: Sep | M18: 98.7 | N18: 22.3 | O18: 711.1 | P18: 22.2 | Q18: 37.3
A19: Oct | B19: 150 | C19: 491.6 | D19: 304.75 | E19: 33.6 | F19: 50 | G19: 1422.65 | H19: 33.6 | L19: Oct | M19: 117.9 | N19: 23.2 | O19: 477.5 | P19: 23.2 | Q19: 48.2
A20: Nov | B20: 150 | C20: 136.7 | D20: 131.25 | E20: 32.3 | F20: 50 | G20: 407 | H20: 32.3 | L20: Nov | M20: 125.8 | N20: 29.2 | O20: 362.9 | P20: 29.1 | Q20: 45.1
A21: Dec | B21: 150 | C21: 118.7 | D21: 105.15 | E21: 29.8 | F21: 50 | G21: 718.35 | H21: 29.7 | L21: Dec | M21: 91.6 | N21: 27.4 | O21: 745.6 | P21: 27.4 | Q21: 38.7
L22: Annual | M22: =MAX(M10:M21) -> 255.8 | N22: =AVERAGE(N10:N21) -> 24.45833333 | O22: =MAX(O10:O21) -> 1149.8 | P22: =AVERAGE(P10:P21) -> 24.38333333 | Q22: =MAX(Q10:Q21) -> 63.1
K24: 2023 | L24: mg/Nm3 | M24: 95%ile 10-min avg maximum | N24: Monthly CO 10-min avg mean | O24: 10-min avg maximum | P24: Monthly daily mean | Q24: Monthly daily maximum
K25: A2 | L25: Jan | M25: 114 | N25: 29.4 | O25: 809.9475.9 | P25: =N25 -> 29.4 | Q25: 45.6
L26: Feb | M26: 97.1 | N26: 25.4 | O26: 475.9 | P26: 25.3 | Q26: 34
L27: Mar | M27: 159.2 | N27: 28.5 | O27: 772.7 | P27: =N27 -> 28.5 | Q27: 42.5
L28: Apr | M28: 135.3 | N28: 26 | O28: 361.2 | P28: 26 | Q28: 42.6
L29: May | M29: 127 | N29: 21.5 | O29: 746 | P29: 21.4 | Q29: 41
L30: Jun | M30: 139.6 | N30: 22.5 | O30: 1042.5 | P30: 22.4 | Q30: 47.9
L31: Jul | M31: 241.4 | N31: 20.2 | O31: 1542.3 | P31: 20.2 | Q31: 57.5
L32: Aug | M32: 133.5 | N32: 21.7 | O32: 652.8 | P32: 21.7 | Q32: 36.9
L33: Sep | M33: 116.2 | N33: 22.4 | O33: 905.8 | P33: 22.3 | Q33: 32.3
L34: Oct | M34: 491.6 | N34: 33.6 | O34: 2367.8 | P34: 33.6 | Q34: 11.9
L35: Nov | M35: 136.7 | N35: 32.3 | O35: 451.1 | P35: 32.3 | Q35: 44.3
L36: Dec | M36: 118.7 | N36: 29.8 | O36: 691.1 | P36: 29.7 | Q36: 41.7
L37: Annual | M37: =MAX(M25:M36) -> 491.6 | N37: =AVERAGE(N25:N36) -> 26.10833333 | O37: =MAX(O25:O36) -> 2367.8 | P37: =AVERAGE(P25:P36) -> 26.06666667 | Q37: =MAX(Q25:Q36) -> 57.5
K39: 2023 | L39: mg/Nm3 | M39: 95%ile 10-min avg maximum | N39: Monthly CO 10-min avg mean | O39: 10-min avg maximum | P39: Monthly daily mean | Q39: Monthly daily maximum
K40: A3 | L40: Jan
L41: Feb
L42: Mar
L43: Apr
L44: May
L45: Jun
L46: Jul
L47: Aug
L48: Sep
L49: Oct
L50: Nov
A51: Comments : | L51: Dec
A52: Environment Agency explanatory note: The 10-minute average ELV is based on the “95th percentile”. In this case this means that 95% of the 10 minute averages in the relevant 24-hour period (i.e. 137) must be below 150 mg/Nm3, and 5% (i.e. 7) are allowed to be any value above 150 mg/Nm3. Whilst we expect operators to minimise CO emissions at all times, it is perfectly acceptable for the value of the maximum 10-minute average to be above 150 mg/Nm3, provided the 95th percentile ELV has been met for that period. | L52: Annual | O52: 0 | Q52: 0
K54: 2023 | L54: mg/Nm3 | M54: 95%ile 10-min avg maximum | N54: Monthly CO 10-min avg mean | O54: 10-min avg maximum | P54: Monthly daily mean | Q54: Monthly daily maximum
K55: A4 | L55: Jan
L56: Feb
L57: Mar
L58: Apr
L59: May
L60: Jun
L61: Jul
L62: Aug
L63: Sep
L64: Oct
L65: Nov
L66: Dec
L67: Annual | O67: 0 | Q67: 0
K69: 2023 | L69: mg/Nm3 | M69: 95%ile 10-min avg maximum | N69: Monthly CO 10-min avg mean | O69: 10-min avg maximum | P69: Monthly daily mean | Q69: Monthly daily maximum
K70: A5 | L70: Jan
L71: Feb
L72: Mar
L73: Apr
L74: May
L75: Jun
L76: Jul
L77: Aug
L78: Sep
L79: Oct
L80: Nov
L81: Dec
L82: Annual | O82: 0 | Q82: 0

Sheet CO 0.5 hourly
A1: Annual Performance Report 2023 | E1: Name of Facility as per Permit
A3: Monitoring of Carbon Monoxide (half hourly) | D3: Whole Installation | G3: See Notes in Cell Q3 | J3: Monitoring of Carbon Monoxide (half hourly) | N3: Per Combustion Line | Q3: Notes:
A5: Please complete this tab for your plant if you have 1/2 hourly CO ELVs; otherwise, leave it blank and complete the CO 95% 10 min tab
Q7: User to add logic to complete Whole installation, Table A5:G18. From the data in Per Combustion Line, Table J6:O79, subject to No. of lines installed
A8: mg/Nm3 | B8: 1/2 Hourly Reference Periods | E8: Daily Reference Periods
A9: 2023 | B9: 1/2 hourly CO ELV | C9: Monthly 1/2 hourly mean | D9: Highest 1/2 hourly maximum | E9: Daily CO ELV | F9: Monthly daily mean | G9: Highest daily maximum | J9: 2023 | K9: mg/Nm3 | L9: Monthly 1/2 hourly mean | M9: Monthly 1/2 hourly maximum | N9: Monthly daily mean | O9: Monthly daily maximum
A10: Jan | B10: 100 | E10: 50 | J10: A1 | K10: Jan
A11: Feb | B11: 100 | E11: 50 | K11: Feb
A12: Mar | B12: 100 | E12: 50 | K12: Mar | Q12: Whole Installation table A5:G18:
A13: Apr | B13: 100 | E13: 50 | K13: Apr | Q13: Mean: for 1/2 hourly and daily periods calculate mean of values across all operational combustion lines for the month
A14: May | B14: 100 | E14: 50 | K14: May
A15: Jun | B15: 100 | E15: 50 | K15: Jun
A16: Jul | B16: 100 | E16: 50 | K16: Jul | Q16: Maximum: for 1/2 hourly and daily periods use the highest value across all operational combustion lines for the month
A17: Aug | B17: 100 | E17: 50 | K17: Aug
A18: Sep | B18: 100 | E18: 50 | K18: Sep
A19: Oct | B19: 100 | E19: 50 | K19: Oct
A20: Nov | B20: 100 | E20: 50 | K20: Nov
A21: Dec | B21: 100 | E21: 50 | K21: Dec
K22: Annual | M22: 0 | O22: 0
J24: 2023 | K24: mg/Nm3 | L24: Monthly 1/2 hourly mean | M24: Monthly 1/2 hourly maximum | N24: Monthly daily mean | O24: Monthly daily maximum
J25: A2 | K25: Jan
K26: Feb
K27: Mar
K28: Apr
K29: May
K30: Jun
K31: Jul
K32: Aug
K33: Sep
K34: Oct
K35: Nov
K36: Dec
K37: Annual | M37: 0 | O37: 0
J39: 2023 | K39: mg/Nm3 | L39: Monthly 1/2 hourly mean | M39: Monthly 1/2 hourly maximum | N39: Monthly daily mean | O39: Monthly daily maximum
J40: A3 | K40: Jan
K41: Feb
K42: Mar
K43: Apr
K44: May
K45: Jun
K46: Jul
K47: Aug
K48: Sep
K49: Oct
K50: Nov
A51: Comments : | K51: Dec
K52: Annual | M52: 0 | O52: 0
J54: 2023 | K54: mg/Nm3 | L54: Monthly 1/2 hourly mean | M54: Monthly 1/2 hourly maximum | N54: Monthly daily mean | O54: Monthly daily maximum
J55: A4 | K55: Jan
K56: Feb
K57: Mar
K58: Apr
K59: May
K60: Jun
K61: Jul
K62: Aug
K63: Sep
K64: Oct
K65: Nov
K66: Dec
K67: Annual | M67: 0 | O67: 0
J69: 2023 | K69: mg/Nm3 | L69: Monthly 1/2 hourly mean | M69: Monthly 1/2 hourly maximum | N69: Monthly daily mean | O69: Monthly daily maximum
J70: A5 | K70: Jan
K71: Feb
K72: Mar
K73: Apr
K74: May
K75: Jun
K76: Jul
K77: Aug
K78: Sep
K79: Oct
K80: Nov
K81: Dec
K82: Annual | M82: 0 | O82: 0
